Workbook

Sheet 3. Data_Input_Sheet
U1: =CONCATENATE('2. Table of Contents'!$F$6," ",'2. Table of Contents'!$G$6) -> 
B9: Data Input Sheet (1)
E12: Initial Application | G12: (2) | I12: =IF(ISBLANK(M12),"","Adjustments") -> Adjustments | M12: Interrogatory Responses | O12: (6) | Q12: =IF(ISBLANK(M12),"","Adjustments") -> Adjustments | U12: Settlement Agreement | W12: (6) | Y12: =IF(ISBLANK(U12),"","Adjustments") -> Adjustments | AC12: Per Board Decision
B15: 1 | C15: Rate Base
C16: Gross Fixed Assets (average) | E16: 130756206 | I16: 0 | M16: =IF(ISBLANK(E16),0,E16+I16) -> 130756206 | U16: =IF(ISBLANK(E16),0,E16+I16+Q16) -> 130756206 | AC16: =IF(ISBLANK(E16),"",E16+I16+Q16+Y16) -> 130756206
C17: Accumulated Depreciation (average) | E17: -53584409 | G17: (5) | I17: 0 | M17: =IF(ISBLANK(E17),0,E17+I17) -> -53584409 | U17: =IF(ISBLANK(E17),0,E17+I17+Q17) -> -53584409 | AC17: =IF(ISBLANK(E17),"",E17+I17+Q17+Y17) -> -53584409
C18: Allowance for Working Capital:
C19: Controllable Expenses | E19: =10312735+44000 -> 10356735 | I19: 0 | M19: =IF(ISBLANK(E19),0,E19+I19) -> 10356735 | U19: =IF(ISBLANK(E19),0,E19+I19+Q19) -> 10356735 | AC19: =IF(ISBLANK(E19),"",E19+I19+Q19+Y19) -> 10356735
C20: Cost of Power | E20: 73507386 | I20: 0 | M20: =IF(ISBLANK(E20),0,E20+I20) -> 73507386 | U20: =IF(ISBLANK(E20),0,E20+I20+Q20) -> 73507386 | AC20: 73507386
C21: Working Capital Rate (%) | E21: 0.075 | G21: (9) | I21: =IF(ISBLANK(M21),"",IF(ISBLANK(E21),"",M21-E21)) ->  | O21: (9) | Q21: =IF(ISBLANK(U21),"",IF(ISBLANK(M21),"",U21-M21)) ->  | W21: (9) | Y21: =IF(ISBLANK(AC21),"",IF(ISBLANK(U21),"",AC21-U21)) ->  | AE21: (9)
B23: 2 | C23: Utility Income
C24: Operating Revenues:
C25: Distribution Revenue at Current Rates | E25: 16063795.9 | I25: =IF(ISBLANK(M25),"",IF(ISBLANK(E25),"",M25-E25)) ->  | Q25: =IF(ISBLANK(U25),"",IF(ISBLANK(M25),"",U25-M25)) ->  | Y25: =IF(ISBLANK(AC25),"",IF(ISBLANK(U25),"",AC25-U25)) -> 
C26: Distribution Revenue at Proposed Rates | E26: =+'9. Rev_Reqt'!F28 -> 18388097.71 | I26: =IF(ISBLANK(M26),"",IF(ISBLANK(E26),"",M26-E26)) ->  | Q26: =IF(ISBLANK(U26),"",IF(ISBLANK(M26),"",U26-M26)) ->  | Y26: =IF(ISBLANK(AC26),"",IF(ISBLANK(U26),"",AC26-U26)) -> 
C27: Other Revenue:
C28: Specific Service Charges | E28: 152000 | I28: =IF(ISBLANK(M28),"",IF(ISBLANK(E28),"",M28-E28)) ->  | Q28: =IF(ISBLANK(U28),"",IF(ISBLANK(M28),"",U28-M28)) ->  | Y28: =IF(ISBLANK(AC28),"",IF(ISBLANK(U28),"",AC28-U28)) -> 
C29: Late Payment Charges | E29: 210000 | I29: =IF(ISBLANK(M29),"",IF(ISBLANK(E29),"",M29-E29)) ->  | Q29: =IF(ISBLANK(U29),"",IF(ISBLANK(M29),"",U29-M29)) ->  | Y29: =IF(ISBLANK(AC29),"",IF(ISBLANK(U29),"",AC29-U29)) -> 
C30: Other Distribution Revenue | E30: 520033 | I30: =IF(ISBLANK(M30),"",IF(ISBLANK(E30),"",M30-E30)) ->  | Q30: =IF(ISBLANK(U30),"",IF(ISBLANK(M30),"",U30-M30)) ->  | Y30: =IF(ISBLANK(AC30),"",IF(ISBLANK(U30),"",AC30-U30)) -> 
C31: Other Income and Deductions | E31: 224211 | I31: =IF(ISBLANK(M31),"",IF(ISBLANK(E31),"",M31-E31)) ->  | Q31: =IF(ISBLANK(U31),"",IF(ISBLANK(M31),"",U31-M31)) ->  | Y31: =IF(ISBLANK(AC31),"",IF(ISBLANK(U31),"",AC31-U31)) -> 
D33: Total Revenue Offsets | E33: 1106244 | G33: (7) | I33: =IF(ISBLANK(M33),"",IF(ISBLANK(E33),"",M33-E33)) ->  | Q33: =IF(ISBLANK(U33),"",IF(ISBLANK(M33),"",U33-M33)) ->  | Y33: =IF(ISBLANK(AC33),"",IF(ISBLANK(U33),"",AC33-U33)) -> 
C35: Operating Expenses:
C36: OM+A Expenses | E36: 10312735 | I36: 0 | M36: =IF(ISBLANK(E36),"",E36+I36) -> 10312735 | U36: =IF(ISBLANK(E36),"",E36+I36+Q36) -> 10312735 | AC36: =IF(ISBLANK(E36),"",E36+I36+Q36+Y36) -> 10312735
C37: Depreciation/Amortization | E37: 4050033.3 | I37: 0 | M37: =IF(ISBLANK(E37),"",E37+I37) -> 4050033.3 | U37: =IF(ISBLANK(E37),"",E37+I37+Q37) -> 4050033.3 | AC37: 4050033.3
C38: Property taxes | E38: 44000 | I38: 0 | M38: =IF(ISBLANK(E38),"",E38+I38) -> 44000 | U38: =IF(ISBLANK(E38),"",E38+I38+Q38) -> 44000 | AC38: 44000
C39: Capital taxes | M39: =IF(ISBLANK(M48),"",M48) ->  | U39: =IF(ISBLANK(U48),"",U48) -> 
C40: Other expenses | I40: 0 | M40: =IF(ISBLANK(E40),"",E40+I40) ->  | U40: =IF(ISBLANK(E40),"",E40+I40+Q40) -> 
B42: 3 | C42: Taxes/PILs
C43: Taxable Income:
D44: Adjustments required to arrive at taxable income | E44: -2520502 | G44: (3) | I44: =IF(ISBLANK(M44),"",IF(ISBLANK(E44),"",M44-E44)) ->  | Q44: =IF(ISBLANK(U44),"",IF(ISBLANK(M44),"",U44-M44)) ->  | Y44: =IF(ISBLANK(AC44),"",IF(ISBLANK(U44),"",AC44-U44)) -> 
C45: Utility Income Taxes and Rates:
C46: Income taxes (not grossed up) | E46: 144837 | I46: =IF(ISBLANK(M46),"",IF(ISBLANK(E46),"",M46-E46)) ->  | Q46: =IF(ISBLANK(U46),"",IF(ISBLANK(M46),"",U46-M46)) ->  | Y46: =IF(ISBLANK(AC46),"",IF(ISBLANK(U46),"",AC46-U46)) -> 
C47: Income taxes (grossed up) | E47: =IF(ISBLANK(E46),"",E46/(1-SUM(E49:E50))) -> 197057.1429 | M47: =IF(ISBLANK(M46),"",M46/(1-SUM(M49:M50))) ->  | U47: =IF(ISBLANK(U46),"",U46/(1-SUM(U49:U50))) ->  | AC47: =IF(ISBLANK(AC46),"",AC46/(1-SUM(AC49:AC50))) -> 
C48: Capital Taxes
C49: Federal tax (%) | E49: 0.15 | I49: =IF(ISBLANK(M49),"",IF(ISBLANK(E49),"",M49-E49)) ->  | Q49: =IF(ISBLANK(U49),"",IF(ISBLANK(M49),"",U49-M49)) ->  | Y49: =IF(ISBLANK(AC49),"",IF(ISBLANK(U49),"",AC49-U49)) -> 
C50: Provincial tax (%) | E50: 0.115 | I50: =IF(ISBLANK(M50),"",IF(ISBLANK(E50),"",M50-E50)) ->  | Q50: =IF(ISBLANK(U50),"",IF(ISBLANK(M50),"",U50-M50)) ->  | Y50: =IF(ISBLANK(AC50),"",IF(ISBLANK(U50),"",AC50-U50)) -> 
C51: Income Tax Credits | I51: =IF(ISBLANK(M51),"",IF(ISBLANK(E51),"",M51-E51)) ->  | Q51: =IF(ISBLANK(U51),"",IF(ISBLANK(M51),"",U51-M51)) ->  | Y51: =IF(ISBLANK(AC51),"",IF(ISBLANK(U51),"",AC51-U51)) -> 
B53: 4 | C53: Capitalization/Cost of Capital
C54: Capital Structure:
C55: Long-term debt Capitalization Ratio (%) | E55: 0.56 | I55: =IF(ISBLANK(M55),"",IF(ISBLANK(E55),"",M55-E55)) ->  | Q55: =IF(ISBLANK(U55),"",IF(ISBLANK(M55),"",U55-M55)) ->  | Y55: =IF(ISBLANK(AC55),"",IF(ISBLANK(U55),"",AC55-U55)) -> 
C56: Short-term debt Capitalization Ratio (%) | E56: 0.04 | G56: (8) | I56: =IF(ISBLANK(M56),"",IF(ISBLANK(E56),"",M56-E56)) ->  | O56: (8) | Q56: =IF(ISBLANK(U56),"",IF(ISBLANK(M56),"",U56-M56)) ->  | W56: (8) | Y56: =IF(ISBLANK(AC56),"",IF(ISBLANK(U56),"",AC56-U56)) ->  | AE56: (8)
C57: Common Equity Capitalization Ratio (%) | E57: 0.4 | I57: =IF(ISBLANK(M57),"",IF(ISBLANK(E57),"",M57-E57)) ->  | Q57: =IF(ISBLANK(U57),"",IF(ISBLANK(M57),"",U57-M57)) ->  | Y57: =IF(ISBLANK(AC57),"",IF(ISBLANK(U57),"",AC57-U57)) -> 
C58: Prefered Shares Capitalization Ratio (%) | E58: 0 | I58: =IF(ISBLANK(M58),"",IF(ISBLANK(E58),"",M58-E58)) ->  | Q58: =IF(ISBLANK(U58),"",IF(ISBLANK(M58),"",U58-M58)) ->  | Y58: =IF(ISBLANK(AC58),"",IF(ISBLANK(U58),"",AC58-U58)) -> 
E59: =SUM(E55:E58) -> 1 | M59: =SUM(M55:M58) -> 0 | U59: =SUM(U55:U58) -> 0 | AC59: =SUM(AC55:AC58) -> 0
E60: =IF(ISBLANK(E57),"",IF(SUM(E55:E58)=100%,"","Capital Structure must total 100%")) ->  | M60: =IF(ISBLANK(M57),"",IF(SUM(M55:M58)=100%,"","Capital Structure must total 100%")) ->  | U60: =IF(ISBLANK(U57),"",IF(SUM(U55:U58)=100%,"","Capital Structure must total 100%")) ->  | AC60: =IF(ISBLANK(AC57),"",IF(SUM(AC55:AC58)=100%,"","Capital Structure must total 100%")) -> 
C61: Cost of Capital
C62: Long-term debt Cost Rate (%) | E62: 0.0344 | I62: =IF(ISBLANK(M62),"",IF(ISBLANK(E62),"",M62-E62)) ->  | Q62: =IF(ISBLANK(U62),"",IF(ISBLANK(M62),"",U62-M62)) ->  | Y62: =IF(ISBLANK(AC62),"",IF(ISBLANK(U62),"",AC62-U62)) -> 
C63: Short-term debt Cost Rate (%) | E63: 0.0623 | I63: =IF(ISBLANK(M63),"",IF(ISBLANK(E63),"",M63-E63)) ->  | Q63: =IF(ISBLANK(U63),"",IF(ISBLANK(M63),"",U63-M63)) ->  | Y63: =IF(ISBLANK(AC63),"",IF(ISBLANK(U63),"",AC63-U63)) -> 
C64: Common Equity Cost Rate (%) | E64: 0.0921 | I64: =IF(ISBLANK(M64),"",IF(ISBLANK(E64),"",M64-E64)) ->  | Q64: =IF(ISBLANK(U64),"",IF(ISBLANK(M64),"",U64-M64)) ->  | Y64: =IF(ISBLANK(AC64),"",IF(ISBLANK(U64),"",AC64-U64)) -> 
C65: Prefered Shares Cost Rate (%) | E65: 0 | I65: =IF(ISBLANK(M65),"",IF(ISBLANK(E65),"",M65-E65)) ->  | Q65: =IF(ISBLANK(U65),"",IF(ISBLANK(M65),"",U65-M65)) ->  | Y65: =IF(ISBLANK(AC65),"",IF(ISBLANK(U65),"",AC65-U65)) -> 
A68: Notes:
B69: General | C69: Data inputs are required on Sheets 3. Data from Sheet 3 will automatically complete calculations on sheets 4 through 9 (Rate Base through Revenue Requirement). Sheets 4 through 9 do not require any inputs except for notes that the Applicant may wish to enter to support the results. Pale green cells are available on sheets 4 through 9 to enter both footnotes beside key cells and the related text for the notes at the bottom of each sheet.
B70: (1) | C70: Some Applicants may have a unique rate as a result of a lead-lag study. The default rate for cost of service applications is 7.5%, per the letter issued by the Board on June 3, 2015.
B71: (2) | C71: Data in column E is for Application as originally filed. For updated revenue requirement as a result of interrogatory responses, technical or settlement conferences, etc., use column M and Adjustments in column I
B72: (3) | C72: Net of addbacks and deductions to arrive at taxable income.
B73: (4) | C73: Average of Gross Fixed Assets at beginning and end of the Test Year
B74: (5) | C74: Average of Accumulated Depreciation at the beginning and end of the Test Year. Enter as a negative amount.
B75: (6) | C75: Select option from drop-down list by clicking on cell M12 or U12. This column allows for the application update reflecting the end of discovery or Argument-in-Chief. Also, the outcome of any Settlement Process can be reflected. Beginning for 2023,two intermediate stages can be shown (e.g., Interrogatory Responses and Settlement Agreement).
B76: (7) | C76: Input total revenue offsets for deriving the base revenue requirement from the service revenue requirement
B77: (8) | C77: 4.0% unless an Applicant has proposed or been approved another amount.
B78: (9) | C78: The default Working Capital Allowance factor is 7.5% (of Cost of Power plus controllable expenses), per the letter issued by the Board on June 3, 2015. Alternatively, a WCA factor based on lead-lag study with supporting rationale could be provided.

Sheet 4. Rate_Base
B6: Rate Base and Working Capital
D10: Rate Base
B11: Line No. | D11: Particulars | G11: Initial Application | K11: =IF(ISBLANK('3. Data_Input_Sheet'!M12),"",'3. Data_Input_Sheet'!I12) -> Adjustments | O11: =IF(ISBLANK('3. Data_Input_Sheet'!M12)," ",'3. Data_Input_Sheet'!M12) -> Interrogatory Responses | S11: =IF(ISBLANK('3. Data_Input_Sheet'!Q12),"",'3. Data_Input_Sheet'!Q12) -> Adjustments | W11: =IF(ISBLANK('3. Data_Input_Sheet'!U12)," ",'3. Data_Input_Sheet'!U12) -> Settlement Agreement | Y11: =IF(ISBLANK('3. Data_Input_Sheet'!Y12),"",'3. Data_Input_Sheet'!Y12) -> Adjustments | AC11: =IF(ISBLANK('3. Data_Input_Sheet'!AC12)," ",'3. Data_Input_Sheet'!AC12) -> Per Board Decision
B13: 1 | D13: Gross Fixed Assets (average) | E13: (2) | G13: ='3. Data_Input_Sheet'!E16 -> 130756206 | K13: ='3. Data_Input_Sheet'!I16 -> 0 | O13: =G13+K13 -> 130756206 | S13: ='3. Data_Input_Sheet'!Q16 -> 0 | W13: =G13+K13+S13 -> 130756206 | Y13: ='3. Data_Input_Sheet'!Y16 -> 0 | AC13: =Y13+W13 -> 130756206
B14: 2 | D14: Accumulated Depreciation (average) | E14: (2) | G14: ='3. Data_Input_Sheet'!E17 -> -53584409 | K14: ='3. Data_Input_Sheet'!I17 -> 0 | O14: =G14+K14 -> -53584409 | S14: ='3. Data_Input_Sheet'!Q17 -> 0 | W14: =G14+K14+S14 -> -53584409 | Y14: ='3. Data_Input_Sheet'!Y17 -> 0 | AC14: =Y14+W14 -> -53584409
B15: 3 | D15: Net Fixed Assets (average) | E15: (2) | G15: =SUM(G13:G14) -> 77171797 | K15: =SUM(K13:K14) -> 0 | O15: =SUM(O13:O14) -> 77171797 | S15: =SUM(S13:S14) -> 0 | W15: =SUM(W13:W14) -> 77171797 | Y15: =SUM(Y13:Y14) -> 0 | AC15: =SUM(AC13:AC14) -> 77171797
B17: 4 | D17: Allowance for Working Capital | E17: (1) | G17: =G30 -> 6289809.075 | K17: =K30 -> -6289809.075 | O17: =O30 -> 0 | S17: =S30 -> 0 | W17: =W30 -> 0 | Y17: =Y30 -> 0 | AC17: =AC30 -> 0
D18: Total Rate Base | G18: =G17+G15 -> 83461606.08 | K18: =K17+K15 -> -6289809.075 | O18: =O17+O15 -> 77171797 | S18: =S17+S15 -> 0 | W18: =W15+W17 -> 77171797 | Y18: =Y17+Y15 -> 0 | AC18: =AC15+AC17 -> 77171797
B19: 5
C20: (1) | D20: Allowance for Working Capital - Derivation
B24: 6 | D24: Controllable Expenses | G24: ='3. Data_Input_Sheet'!E19 -> 10356735 | K24: ='3. Data_Input_Sheet'!I19 -> 0 | O24: =G24+K24 -> 10356735 | S24: ='3. Data_Input_Sheet'!Q19 -> 0 | W24: =G24+K24+S24 -> 10356735 | Y24: ='3. Data_Input_Sheet'!Y19 -> 0 | AC24: =Y24+W24 -> 10356735
B25: 7 | D25: Cost of Power | G25: ='3. Data_Input_Sheet'!E20 -> 73507386 | K25: ='3. Data_Input_Sheet'!I20 -> 0 | O25: =G25+K25 -> 73507386 | S25: ='3. Data_Input_Sheet'!Q20 -> 0 | W25: =G25+K25+S25 -> 73507386 | Y25: ='3. Data_Input_Sheet'!Y20 -> 0 | AC25: =Y25+W25 -> 73507386
B26: 8 | D26: Working Capital Base | G26: =SUM(G24:G25) -> 83864121 | K26: =K24+K25 -> 0 | O26: =SUM(O24:O25) -> 83864121 | S26: =S24+S25 -> 0 | W26: =SUM(W24:W25) -> 83864121 | Y26: =Y24+Y25 -> 0 | AC26: =SUM(AC24:AC25) -> 83864121
B28: 9 | D28: Working Capital Rate % | E28: (1) | G28: ='3. Data_Input_Sheet'!E21 -> 0.075 | K28: =O28-G28 -> -0.075 | O28: ='3. Data_Input_Sheet'!M21 -> 0 | S28: =W28-O28 -> 0 | W28: ='3. Data_Input_Sheet'!U21 -> 0 | Y28: =AC28-W28 -> 0 | AC28: ='3. Data_Input_Sheet'!AC21 -> 0
B30: 10 | D30: Working Capital Allowance | G30: =G26*G28 -> 6289809.075 | K30: =O30-G30 -> -6289809.075 | O30: =O26*O28 -> 0 | S30: =W30-O30 -> 0 | W30: =W26*W28 -> 0 | Y30: =AC30-W30 -> 0 | AC30: =AC26*AC28 -> 0
B33: Notes
B34: (1) | D34: Some Applicants may have a unique rate as a result of a lead-lag study. The default rate for cost of service applications is 7.5%, per the letter issued by the Board on June 3, 2015.
B35: (2) | D35: Average of opening and closing balances for the year.

Sheet 5. Utility Income
B11: Utility Income
B13: Line No. | D13: Particulars | F13: Initial Application | J13: =IF(N13="","","Adjustments") -> Adjustments | N13: =IF(ISBLANK('3. Data_Input_Sheet'!M12),"",'3. Data_Input_Sheet'!M12) -> Interrogatory Responses | R13: =IF(N13="","","Adjustments") -> Adjustments | V13: =IF(ISBLANK('3. Data_Input_Sheet'!U12),"",'3. Data_Input_Sheet'!U12) -> Settlement Agreement | Z13: =IF(V13="","","Adjustments") -> Adjustments | AD13: ='3. Data_Input_Sheet'!AC12 -> Per Board Decision
D15: Operating Revenues:
B16: 1 | D16: Distribution Revenue (at Proposed Rates) | F16: ='3. Data_Input_Sheet'!E26 -> 18388097.71 | J16: =N16-F16 -> -18388097.71 | N16: ='3. Data_Input_Sheet'!M26 -> 0 | R16: =V16-N16 -> 0 | V16: =IF(ISBLANK('3. Data_Input_Sheet'!U26),'5. Utility Income'!N16,'3. Data_Input_Sheet'!U26) -> 0 | Z16: =AD16-V16 -> 0 | AD16: =IF(ISBLANK('3. Data_Input_Sheet'!AC26),'5. Utility Income'!V16,'3. Data_Input_Sheet'!AC26) -> 0
B17: 2 | D17: Other Revenue | E17: (1) | F17: =F48 -> 1106244 | J17: =N17-F17 -> -1106244 | N17: =N48 -> 0 | R17: =V17-N17 -> 0 | V17: =V48 -> 0 | Z17: =AD17-V17 -> 0 | AD17: =AD48 -> 0
F18: =SUM(F16:F17) -> 19494341.71 | J18: =SUM(J16:J17) -> -19494341.71 | N18: =SUM(N16:N17) -> 0 | R18: =SUM(R16:R17) -> 0 | V18: =SUM(V16:V17) -> 0 | Z18: =SUM(Z16:Z17) -> 0 | AD18: =SUM(AD16:AD17) -> 0
B19: 3 | D19: Total Operating Revenues
D21: Operating Expenses:
B22: 4 | D22: OM+A Expenses | F22: ='3. Data_Input_Sheet'!E36 -> 10312735 | J22: ='3. Data_Input_Sheet'!I36 -> 0 | N22: ='3. Data_Input_Sheet'!M36 -> 10312735 | R22: ='3. Data_Input_Sheet'!Q36 -> 0 | V22: ='3. Data_Input_Sheet'!U36 -> 10312735 | Z22: ='3. Data_Input_Sheet'!Y36 -> 0 | AD22: ='3. Data_Input_Sheet'!AC36 -> 10312735
B23: 5 | D23: Depreciation/Amortization | F23: ='3. Data_Input_Sheet'!E37 -> 4050033.3 | J23: ='3. Data_Input_Sheet'!I37 -> 0 | N23: ='3. Data_Input_Sheet'!M37 -> 4050033.3 | R23: ='3. Data_Input_Sheet'!Q37 -> 0 | V23: ='3. Data_Input_Sheet'!U37 -> 4050033.3 | Z23: ='3. Data_Input_Sheet'!Y37 -> 0 | AD23: ='3. Data_Input_Sheet'!AC37 -> 4050033.3
B24: 6 | D24: Property taxes | F24: ='3. Data_Input_Sheet'!E38 -> 44000 | J24: ='3. Data_Input_Sheet'!I38 -> 0 | N24: ='3. Data_Input_Sheet'!M38 -> 44000 | R24: ='3. Data_Input_Sheet'!Q38 -> 0 | V24: ='3. Data_Input_Sheet'!U38 -> 44000 | Z24: ='3. Data_Input_Sheet'!Y38 -> 0 | AD24: ='3. Data_Input_Sheet'!AC38 -> 44000
B25: 7 | D25: Capital taxes | F25: ='6. Taxes_PILs'!G25 -> 0 | J25: =N25-F25 -> 0 | N25: ='6. Taxes_PILs'!K25 -> 0 | R25: =V25-N25 -> 0 | V25: ='6. Taxes_PILs'!O25 -> 0 | Z25: =AD25-V25 -> 0 | AD25: ='6. Taxes_PILs'!W25 -> 0
B26: 8 | D26: Other expense | F26: ='3. Data_Input_Sheet'!E40 -> 0 | J26: ='3. Data_Input_Sheet'!I40 -> 0 | N26: ='3. Data_Input_Sheet'!M40 ->  | R26: ='3. Data_Input_Sheet'!Q40 -> 0 | V26: ='3. Data_Input_Sheet'!U40 ->  | Z26: ='3. Data_Input_Sheet'!Y40 -> 0 | AD26: ='3. Data_Input_Sheet'!AC40 -> 
F27: =SUM(F22:F26) -> 14406768.3 | J27: =SUM(J22:J26) -> 0 | N27: =SUM(N22:N26) -> 14406768.3 | R27: =SUM(R22:R26) -> 0 | V27: =SUM(V22:V26) -> 14406768.3 | Z27: =SUM(Z22:Z26) -> 0 | AD27: =SUM(AD22:AD26) -> 14406768.3
B28: 9 | D28: Subtotal (lines 4 to 8)
B30: 10 | D30: Deemed Interest Expense | F30: ='7. Cost_of_Capital'!P19 -> 1815790.702 | J30: =N30-F30 -> -1815790.702 | N30: ='7. Cost_of_Capital'!P35 -> 0 | R30: =V30-N30 -> 0 | V30: ='7. Cost_of_Capital'!P51 -> 0 | Z30: =AD30-V30 -> 0 | AD30: ='7. Cost_of_Capital'!P67 -> 0
B32: 11 | D32: Total Expenses (lines 9 to 10) | F32: =F27+F30 -> 16222559 | J32: =J30+J27 -> -1815790.702 | N32: =N30+N27 -> 14406768.3 | R32: =R30+R27 -> 0 | V32: =V27+V30 -> 14406768.3 | Z32: =Z30+Z27 -> 0 | AD32: =AD27+AD30 -> 14406768.3
B34: 12 | D34: Utility income before income taxes | F34: =F18-(F32) -> 3271782.711 | J34: =J18-(J32) -> -17678551.01 | N34: =N18-(N32) -> -14406768.3 | R34: =R18-(R32) -> 0 | V34: =V18-(V32) -> -14406768.3 | Z34: =Z18-(Z32) -> 0 | AD34: =AD18-(AD32) -> -14406768.3
F35: ='6. Taxes_PILs'!G31 -> 197057.1429 | J35: =N35-F35 -> 0 | N35: ='6. Taxes_PILs'!K31 -> 197057.1429 | R35: =V35-N35 -> 0 | V35: =IF('6. Taxes_PILs'!O31=0,N35,'6. Taxes_PILs'!O31) -> 197057.1429 | Z35: =AD35-V35 -> 0 | AD35: =IF('6. Taxes_PILs'!S31=0,V35,'6. Taxes_PILs'!S31) -> 197057.1429
B36: 13 | D36: Income taxes (grossed-up)
F37: =F34-F35 -> 3074725.568 | J37: =J34-J35 -> -17678551.01 | N37: =N34-N35 -> -14603825.44 | R37: =R34-R35 -> 0 | V37: =V34-V35 -> -14603825.44 | Z37: =Z34-Z35 -> 0 | AD37: =AD34-AD35 -> -14603825.44
B38: 14 | D38: Utility net income
B42: Notes
B44: (1) | D44: Specific Service Charges | F44: ='3. Data_Input_Sheet'!E28 -> 152000 | J44: ='3. Data_Input_Sheet'!I28 ->  | N44: ='3. Data_Input_Sheet'!M28 -> 0 | R44: ='3. Data_Input_Sheet'!Q28 ->  | V44: =IF(ISBLANK('3. Data_Input_Sheet'!U28),N44,'3. Data_Input_Sheet'!U28) -> 0 | Z44: ='3. Data_Input_Sheet'!Y28 ->  | AD44: =IF(ISBLANK('3. Data_Input_Sheet'!AC28),V44,'3. Data_Input_Sheet'!AC28) -> 0
D45: Late Payment Charges | F45: ='3. Data_Input_Sheet'!E29 -> 210000 | J45: ='3. Data_Input_Sheet'!I29 ->  | N45: ='3. Data_Input_Sheet'!M29 -> 0 | R45: ='3. Data_Input_Sheet'!Q29 ->  | V45: =IF(ISBLANK('3. Data_Input_Sheet'!U29),N45,'3. Data_Input_Sheet'!U29) -> 0 | Z45: ='3. Data_Input_Sheet'!Y29 ->  | AD45: =IF(ISBLANK('3. Data_Input_Sheet'!AC29),V45,'3. Data_Input_Sheet'!AC29) -> 0
D46: Other Distribution Revenue | F46: ='3. Data_Input_Sheet'!E30 -> 520033 | J46: ='3. Data_Input_Sheet'!I30 ->  | N46: ='3. Data_Input_Sheet'!M30 -> 0 | R46: ='3. Data_Input_Sheet'!Q30 ->  | V46: =IF(ISBLANK('3. Data_Input_Sheet'!U30),N46,'3. Data_Input_Sheet'!U30) -> 0 | Z46: ='3. Data_Input_Sheet'!Y30 ->  | AD46: =IF(ISBLANK('3. Data_Input_Sheet'!AC30),V46,'3. Data_Input_Sheet'!AC30) -> 0
D47: Other Income and Deductions | F47: ='3. Data_Input_Sheet'!E31 -> 224211 | J47: ='3. Data_Input_Sheet'!I31 ->  | N47: ='3. Data_Input_Sheet'!M31 -> 0 | R47: ='3. Data_Input_Sheet'!Q31 ->  | V47: =IF(ISBLANK('3. Data_Input_Sheet'!U31),N47,'3. Data_Input_Sheet'!U31) -> 0 | Z47: ='3. Data_Input_Sheet'!Y31 ->  | AD47: =IF(ISBLANK('3. Data_Input_Sheet'!AC31),V47,'3. Data_Input_Sheet'!AC31) -> 0
F48: =SUM(F44:F47) -> 1106244 | J48: =SUM(J44:J47) -> 0 | N48: =SUM(N44:N47) -> 0 | R48: =SUM(R44:R47) -> 0 | V48: =SUM(V44:V47) -> 0 | Z48: =SUM(Z44:Z47) -> 0 | AD48: =SUM(AD44:AD47) -> 0
D49: Total Revenue Offsets

Sheet 6. Taxes_PILs
B9: Taxes/PILs
B12: Line No. | D12: Particulars | G12: Application | K12: =IF(ISBLANK('3. Data_Input_Sheet'!M12),"",'3. Data_Input_Sheet'!M12) -> Interrogatory Responses | O12: =IF(ISBLANK('3. Data_Input_Sheet'!U12),"",'3. Data_Input_Sheet'!U12) -> Settlement Agreement | S12: ='3. Data_Input_Sheet'!AC12 -> Per Board Decision
D14: Determination of Taxable Income
B16: 1 | D16: Utility net income before taxes | G16: ='7. Cost_of_Capital'!P22 -> 3074725.568 | K16: ='7. Cost_of_Capital'!P38 -> 0 | O16: ='7. Cost_of_Capital'!P54 -> 0 | S16: ='7. Cost_of_Capital'!P70 -> 0
B18: 2 | D18: Adjustments required to arrive at taxable utility income | G18: ='3. Data_Input_Sheet'!E44 -> -2520502 | K18: ='3. Data_Input_Sheet'!M44 -> 0 | O18: =IF(ISBLANK('3. Data_Input_Sheet'!U44),K18,'3. Data_Input_Sheet'!U44) -> 0 | S18: =IF(ISBLANK('3. Data_Input_Sheet'!AC44),O18,'3. Data_Input_Sheet'!AC44) -> 0
B20: 3 | D20: Taxable income | G20: =G16+G18 -> 554223.5678 | K20: =K16+K18 -> 0 | O20: =O16+O18 -> 0 | S20: =S16+S18 -> 0
D22: Calculation of Utility income Taxes
B24: 4 | D24: Income taxes | G24: ='3. Data_Input_Sheet'!E46 -> 144837 | K24: =IF(ISBLANK('3. Data_Input_Sheet'!M46),'6. Taxes_PILs'!G24,'3. Data_Input_Sheet'!M46) -> 144837 | O24: =IF(ISBLANK('3. Data_Input_Sheet'!U46),'6. Taxes_PILs'!K24,'3. Data_Input_Sheet'!U46) -> 144837 | S24: =IF(ISBLANK('3. Data_Input_Sheet'!AC46),'6. Taxes_PILs'!O24,'3. Data_Input_Sheet'!AC46) -> 144837
B25: 5 | D25: Capital taxes | G25: ='3. Data_Input_Sheet'!E48 -> 0 | K25: =IF(ISBLANK('3. Data_Input_Sheet'!M48),'6. Taxes_PILs'!G25,'3. Data_Input_Sheet'!M48) -> 0 | O25: =IF(ISBLANK('3. Data_Input_Sheet'!U48),'6. Taxes_PILs'!K25,'3. Data_Input_Sheet'!U48) -> 0 | S25: =IF(ISBLANK('3. Data_Input_Sheet'!Y48),'6. Taxes_PILs'!O25,'3. Data_Input_Sheet'!Y48) -> 0
G26: =SUM(G24:G25) -> 144837 | K26: =SUM(K24:K25) -> 144837 | O26: =SUM(O24:O25) -> 144837 | S26: =SUM(S24:S25) -> 144837
B27: 6 | D27: Total taxes
B29: 7 | D29: Gross-up of Income Taxes | G29: =(G24/(1-G41))-G24 -> 52220.14286 | K29: =(K24/(1-K41))-K24 -> 52220.14286 | O29: =(O24/(1-O41))-O24 -> 52220.14286 | S29: =(S24/(1-S41))-S24 -> 52220.14286
B31: 8 | D31: Grossed-up Income Taxes | G31: =G24+G29 -> 197057.1429 | K31: =K24+K29 -> 197057.1429 | O31: =O24+O29 -> 197057.1429 | S31: =S24+S29 -> 197057.1429
B33: 9 | D33: PILs / tax Allowance (Grossed-up Income taxes + Capital taxes) | G33: =G26+G29 -> 197057.1429 | K33: =K29+K26 -> 197057.1429 | O33: =O29+O26 -> 197057.1429 | S33: =S29+S26 -> 197057.1429
B35: 10 | D35: Other tax Credits | G35: ='3. Data_Input_Sheet'!E51 -> 0 | K35: =IF(ISBLANK('3. Data_Input_Sheet'!M51),G35,'3. Data_Input_Sheet'!M51) -> 0 | O35: =IF(ISBLANK('3. Data_Input_Sheet'!U51),K35,'3. Data_Input_Sheet'!U51) -> 0 | S35: =IF(ISBLANK('3. Data_Input_Sheet'!AC51),O35,'3. Data_Input_Sheet'!AC51) -> 0
D37: Tax Rates
B39: 11 | D39: Federal tax (%) | G39: ='3. Data_Input_Sheet'!E49 -> 0.15 | K39: =IF(ISBLANK('3. Data_Input_Sheet'!M49),G39,'3. Data_Input_Sheet'!M49) -> 0.15 | O39: =IF(ISBLANK('3. Data_Input_Sheet'!U49),K39,'3. Data_Input_Sheet'!U49) -> 0.15 | S39: =IF(ISBLANK('3. Data_Input_Sheet'!AC49),O39,'3. Data_Input_Sheet'!AC49) -> 0.15
B40: 12 | D40: Provincial tax (%) | G40: ='3. Data_Input_Sheet'!E50 -> 0.115 | K40: =IF(ISBLANK('3. Data_Input_Sheet'!M50),G40,'3. Data_Input_Sheet'!M50) -> 0.115 | O40: =IF(ISBLANK('3. Data_Input_Sheet'!U50),K40,'3. Data_Input_Sheet'!U50) -> 0.115 | S40: =IF(ISBLANK('3. Data_Input_Sheet'!AC50),O40,'3. Data_Input_Sheet'!AC50) -> 0.115
B41: 13 | D41: Total tax rate (%) | G41: =G39+G40 -> 0.265 | K41: =K39+K40 -> 0.265 | O41: =O39+O40 -> 0.265 | S41: =S39+S40 -> 0.265
B44: Notes
D45: Capital Taxes not applicable after July 1, 2010 (i.e. for 2011 and later test years)

Sheet 7. Cost_of_Capital
B5: Capitalization/Cost of Capital
B11: Line No. | D11: Particulars | F11: Capitalization Ratio | L11: Cost Rate | P11: Return
F13: Initial Application
F15: (%) | J15: ($) | L15: (%) | P15: ($)
D16: Debt
B17: 1 | D17: Long-term Debt | F17: ='3. Data_Input_Sheet'!E55 -> 0.56 | J17: =$J$26*F17 -> 46738499.4 | L17: ='3. Data_Input_Sheet'!E62 -> 0.0344 | P17: =L17*J17 -> 1607804.379
B18: 2 | D18: Short-term Debt | F18: ='3. Data_Input_Sheet'!E56 -> 0.04 | J18: =$J$26*F18 -> 3338464.243 | L18: ='3. Data_Input_Sheet'!E63 -> 0.0623 | P18: =L18*J18 -> 207986.3223
B19: 3 | D19: Total Debt | F19: =SUM(F17:F18) -> 0.6 | J19: =SUM(J17:J18) -> 50076963.65 | L19: =IF(F19=0,0,SUMPRODUCT(F17:F18,L17:L18)/F19) -> 0.03626 | P19: =SUM(P17:P18) -> 1815790.702
D21: Equity
B22: 4 | D22: Common Equity | F22: ='3. Data_Input_Sheet'!E57 -> 0.4 | J22: =$J$26*F22 -> 33384642.43 | L22: ='3. Data_Input_Sheet'!E64 -> 0.0921 | P22: =L22*J22 -> 3074725.568
B23: 5 | D23: Preferred Shares | F23: ='3. Data_Input_Sheet'!E58 -> 0 | J23: =$J$26*F23 -> 0 | L23: ='3. Data_Input_Sheet'!E65 -> 0 | P23: =L23*J23 -> 0
B24: 6 | D24: Total Equity | F24: =SUM(F22:F23) -> 0.4 | J24: =SUM(J22:J23) -> 33384642.43 | L24: =IF(F24=0,0,SUMPRODUCT(F22:F23,L22:L23)/F24) -> 0.0921 | P24: =SUM(P22:P23) -> 3074725.568
B26: 7 | D26: Total | F26: =SUM(F19,F24) -> 1 | J26: ='4. Rate_Base'!G18 -> 83461606.08 | L26: =(L19*F19)+(L24*F24) -> 0.058596 | P26: =P19+P24 -> 4890516.27
F29: ='1. Info'!AC1 -> Interrogatory Responses
F31: (%) | J31: ($) | L31: (%) | P31: ($)
D32: Debt
B33: 1 | D33: Long-term Debt | F33: ='3. Data_Input_Sheet'!M55 -> 0 | J33: =$J$42*F33 -> 0 | L33: ='3. Data_Input_Sheet'!M62 -> 0 | P33: =L33*J33 -> 0
B34: 2 | D34: Short-term Debt | F34: ='3. Data_Input_Sheet'!M56 -> 0 | J34: =$J$42*F34 -> 0 | L34: ='3. Data_Input_Sheet'!M63 -> 0 | P34: =L34*J34 -> 0
B35: 3 | D35: Total Debt | F35: =SUM(F33:F34) -> 0 | J35: =SUM(J33:J34) -> 0 | L35: =IF(F35=0,0,SUMPRODUCT(F33:F34,L33:L34)/F35) -> 0 | P35: =SUM(P33:P34) -> 0
D37: Equity
B38: 4 | D38: Common Equity | F38: ='3. Data_Input_Sheet'!M57 -> 0 | J38: =$J$42*F38 -> 0 | L38: ='3. Data_Input_Sheet'!M64 -> 0 | P38: =L38*J38 -> 0
B39: 5 | D39: Preferred Shares | F39: ='3. Data_Input_Sheet'!M58 -> 0 | J39: =$J$42*F39 -> 0 | L39: ='3. Data_Input_Sheet'!M65 -> 0 | P39: =L39*J39 -> 0
B40: 6 | D40: Total Equity | F40: =SUM(F38:F39) -> 0 | J40: =SUM(J38:J39) -> 0 | L40: =IF(F40=0,0,SUMPRODUCT(F38:F39,L38:L39)/F40) -> 0 | P40: =SUM(P38:P39) -> 0
B42: 7 | D42: Total | F42: =F35+F40 -> 0 | J42: ='4. Rate_Base'!O18 -> 77171797 | L42: =(L35*F35)+(L40*F40) -> 0 | P42: =P35+P40 -> 0
F45: ='1. Info'!AC2 -> Settlement Agreement
F47: (%) | J47: ($) | L47: (%) | P47: ($)
D48: Debt
B49: 8 | D49: Long-term Debt | F49: =IF(ISBLANK('3. Data_Input_Sheet'!U55),F33,'3. Data_Input_Sheet'!U55) -> 0 | J49: =$J$58*F49 -> 0 | L49: =IF(ISBLANK('3. Data_Input_Sheet'!U62),L17,'3. Data_Input_Sheet'!U62) -> 0.0344 | P49: =L49*J49 -> 0
B50: 9 | D50: Short-term Debt | F50: =IF(ISBLANK('3. Data_Input_Sheet'!U56),F34,'3. Data_Input_Sheet'!U56) -> 0 | J50: =$J$58*F50 -> 0 | L50: =IF(ISBLANK('3. Data_Input_Sheet'!U63),L18,'3. Data_Input_Sheet'!U63) -> 0.0623 | P50: =L50*J50 -> 0
B51: 10 | D51: Total Debt | F51: =SUM(F49:F50) -> 0 | J51: =SUM(J49:J50) -> 0 | L51: =IF(F51=0,0,SUMPRODUCT(F49:F50,L49:L50)/F51) -> 0 | P51: =SUM(P49:P50) -> 0
D53: Equity
B54: 11 | D54: Common Equity | F54: =IF(ISBLANK('3. Data_Input_Sheet'!U57),F38,'3. Data_Input_Sheet'!U57) -> 0 | J54: =$J$58*F54 -> 0 | L54: =IF(ISBLANK('3. Data_Input_Sheet'!U64),L22,'3. Data_Input_Sheet'!U64) -> 0.0921 | P54: =L54*J54 -> 0
B55: 12 | D55: Preferred Shares | F55: =IF(ISBLANK('3. Data_Input_Sheet'!U58),F39,'3. Data_Input_Sheet'!U58) -> 0 | J55: =$J$58*F55 -> 0 | L55: =IF(ISBLANK('3. Data_Input_Sheet'!U65),L23,'3. Data_Input_Sheet'!U65) -> 0 | P55: =L55*J55 -> 0
B56: 13 | D56: Total Equity | F56: =SUM(F54:F55) -> 0 | J56: =SUM(J54:J55) -> 0 | L56: =IF(F56=0,0,SUMPRODUCT(F54:F55,L54:L55)/F56) -> 0 | P56: =SUM(P54:P55) -> 0
B58: 14 | D58: Total | F58: =F51+F56 -> 0 | J58: ='4. Rate_Base'!W18 -> 77171797 | L58: =(L51*F51)+(L56*F56) -> 0 | P58: =P51+P56 -> 0
F61: Per Board Decision
F63: (%) | J63: ($) | L63: (%) | P63: ($)
D64: Debt
B65: 8 | D65: Long-term Debt | F65: =IF(ISBLANK('3. Data_Input_Sheet'!AC55),F49,'3. Data_Input_Sheet'!AC55) -> 0 | J65: =$J$74*F65 -> 0 | L65: =IF(ISBLANK('3. Data_Input_Sheet'!AC62),L49,'3. Data_Input_Sheet'!AC62) -> 0.0344 | P65: =L65*J65 -> 0
B66: 9 | D66: Short-term Debt | F66: =IF(ISBLANK('3. Data_Input_Sheet'!AC56),F50,'3. Data_Input_Sheet'!AC56) -> 0 | J66: =$J$74*F66 -> 0 | L66: =IF(ISBLANK('3. Data_Input_Sheet'!AC63),L50,'3. Data_Input_Sheet'!AC63) -> 0.0623 | P66: =L66*J66 -> 0
B67: 10 | D67: Total Debt | F67: =SUM(F65:F66) -> 0 | J67: =SUM(J65:J66) -> 0 | L67: =IF(F67=0,0,SUMPRODUCT(F65:F66,L65:L66)/F67) -> 0 | P67: =SUM(P65:P66) -> 0
D69: Equity
B70: 11 | D70: Common Equity | F70: =IF(ISBLANK('3. Data_Input_Sheet'!AC57),F54,'3. Data_Input_Sheet'!AC57) -> 0 | J70: =$J$74*F70 -> 0 | L70: =IF(ISBLANK('3. Data_Input_Sheet'!AC64),L54,'3. Data_Input_Sheet'!AC64) -> 0.0921 | P70: =L70*J70 -> 0
B71: 12 | D71: Preferred Shares | F71: =IF(ISBLANK('3. Data_Input_Sheet'!AC58),F55,'3. Data_Input_Sheet'!AC58) -> 0 | J71: =$J$58*F71 -> 0 | L71: =IF(ISBLANK('3. Data_Input_Sheet'!AC65),L55,'3. Data_Input_Sheet'!AC65) -> 0 | P71: =L71*J71 -> 0
B72: 13 | D72: Total Equity | F72: =SUM(F70:F71) -> 0 | J72: =SUM(J70:J71) -> 0 | L72: =IF(F72=0,0,SUMPRODUCT(F70:F71,L70:L71)/F72) -> 0 | P72: =SUM(P70:P71) -> 0
B74: 14 | D74: Total | F74: =F67+F72 -> 0 | J74: ='4. Rate_Base'!AC18 -> 77171797 | L74: =(L67*F67)+(L72*F72) -> 0 | P74: =P67+P72 -> 0
B77: Notes

Sheet 8. Rev_Def_Suff
P1: =CONCATENATE('2. Table of Contents'!$F$6," ",'2. Table of Contents'!$G$6) -> 
B10: Revenue Deficiency/Sufficiency
F13: Initial Application | J13: =IF(ISBLANK('3. Data_Input_Sheet'!M12),"",'3. Data_Input_Sheet'!M12) -> Interrogatory Responses | N13: =IF(ISBLANK('3. Data_Input_Sheet'!U12),"",'3. Data_Input_Sheet'!U12) -> Settlement Agreement | R13: ='3. Data_Input_Sheet'!AC12 -> Per Board Decision
B15: Line No. | D15: Particulars | F15: At Current Approved Rates | H15: At Proposed Rates | J15: At Current Approved Rates | L15: At Proposed Rates | N15: At Current Approved Rates | P15: At Proposed Rates | R15: At Current Approved Rates | T15: At Proposed Rates
B19: 1 | D19: Revenue Deficiency from Below | H19: =F52 -> 2894210.432 | L19: =J52 -> -2254459.322 | P19: =N52 -> 19601045.31 | T19: =R52 -> 19601045.31
B20: 2 | D20: Distribution Revenue | F20: ='3. Data_Input_Sheet'!E25 -> 16063795.9 | H20: ='3. Data_Input_Sheet'!E26-H19 -> 15493887.28 | J20: =IF(ISBLANK('3. Data_Input_Sheet'!M25),'3. Data_Input_Sheet'!E25,'3. Data_Input_Sheet'!M25) -> 16063795.9 | L20: =IF(ISBLANK('3. Data_Input_Sheet'!M26),'3. Data_Input_Sheet'!E26-L19,'3. Data_Input_Sheet'!M26-L19) -> 20642557.03 | N20: =IF(ISBLANK('3. Data_Input_Sheet'!U25),'3. Data_Input_Sheet'!M25,'3. Data_Input_Sheet'!U25) -> 0 | P20: =IF(ISBLANK('3. Data_Input_Sheet'!U26),'3. Data_Input_Sheet'!M26-P19,'3. Data_Input_Sheet'!U26-P19) -> -19601045.31 | R20: =IF(ISBLANK('3. Data_Input_Sheet'!AC25),'3. Data_Input_Sheet'!U25,'3. Data_Input_Sheet'!AC25) -> 0 | T20: =IF(ISBLANK('3. Data_Input_Sheet'!AC26),'3. Data_Input_Sheet'!U26-T19,'3. Data_Input_Sheet'!AC26-T19) -> -19601045.31
B21: 3 | D21: Other Operating Revenue Offsets - net | F21: ='5. Utility Income'!F48 -> 1106244 | H21: ='5. Utility Income'!F48 -> 1106244 | J21: ='5. Utility Income'!N48 -> 0 | L21: =J21 -> 0 | N21: ='5. Utility Income'!V48 -> 0 | P21: ='5. Utility Income'!V48 -> 0 | R21: ='5. Utility Income'!AD48 -> 0 | T21: ='5. Utility Income'!AD48 -> 0
B22: 4 | D22: Total Revenue | F22: =SUM(F20:F21) -> 17170039.9 | H22: =SUM(H19:H21) -> 19494341.71 | J22: =SUM(J20:J21) -> 16063795.9 | L22: =SUM(L19:L21) -> 18388097.71 | N22: =SUM(N20:N21) -> 0 | P22: =SUM(P19:P21) -> 0 | R22: =SUM(R20:R21) -> 0 | T22: =SUM(T19:T21) -> 0
B24: 5 | D24: Operating Expenses | F24: ='5. Utility Income'!F27 -> 14406768.3 | H24: ='5. Utility Income'!F27 -> 14406768.3 | J24: ='5. Utility Income'!N27 -> 14406768.3 | L24: ='5. Utility Income'!N27 -> 14406768.3 | N24: ='5. Utility Income'!V27 -> 14406768.3 | P24: ='5. Utility Income'!V27 -> 14406768.3 | R24: ='5. Utility Income'!AD27 -> 14406768.3 | T24: ='5. Utility Income'!AD27 -> 14406768.3
B25: 6 | D25: Deemed Interest Expense | F25: ='5. Utility Income'!F30 -> 1815790.702 | H25: ='5. Utility Income'!F30 -> 1815790.702 | J25: ='5. Utility Income'!N30 -> 0 | L25: ='5. Utility Income'!N30 -> 0 | N25: ='5. Utility Income'!V30 -> 0 | P25: ='5. Utility Income'!V30 -> 0 | R25: ='5. Utility Income'!AD30 -> 0 | T25: ='5. Utility Income'!AD30 -> 0
B26: 8 | D26: Total Cost and Expenses | F26: =SUM(F24:F25) -> 16222559 | H26: =SUM(H24:H25) -> 16222559 | J26: =SUM(J24:J25) -> 14406768.3 | L26: =SUM(L24:L25) -> 14406768.3 | N26: =SUM(N24:N25) -> 14406768.3 | P26: =SUM(P24:P25) -> 14406768.3 | R26: =SUM(R24:R25) -> 14406768.3 | T26: =SUM(T24:T25) -> 14406768.3
B28: 9 | D28: Utility Income Before Income Taxes | F28: =F22-F26 -> 947480.9 | H28: =H22-H26 -> 3271782.711 | J28: =J22-J26 -> 1657027.602 | L28: =L22-L26 -> 3981329.412 | N28: =N22-N26 -> -14406768.3 | P28: =P22-P26 -> -14406768.3 | R28: =R22-R26 -> -14406768.3 | T28: =T22-T26 -> -14406768.3
B30: 10 | D30: Tax Adjustments to Accounting Income per 2013 PILs model | F30: ='3. Data_Input_Sheet'!E44 -> -2520502 | H30: ='3. Data_Input_Sheet'!E44 -> -2520502 | J30: =IF(ISBLANK('3. Data_Input_Sheet'!M44),'3. Data_Input_Sheet'!E44,'3. Data_Input_Sheet'!M44) -> -2520502 | L30: =IF(ISBLANK('3. Data_Input_Sheet'!M44),'3. Data_Input_Sheet'!E44,'3. Data_Input_Sheet'!M44) -> -2520502 | N30: =IF(ISBLANK('3. Data_Input_Sheet'!U44),'3. Data_Input_Sheet'!M44,'3. Data_Input_Sheet'!U44) -> 0 | P30: =IF(ISBLANK('3. Data_Input_Sheet'!U44),'3. Data_Input_Sheet'!M44,'3. Data_Input_Sheet'!U44) -> 0 | R30: =IF(ISBLANK('3. Data_Input_Sheet'!Y44),'3. Data_Input_Sheet'!Q44,'3. Data_Input_Sheet'!AC44) -> 0 | T30: =IF(ISBLANK('3. Data_Input_Sheet'!AC44),'3. Data_Input_Sheet'!U44,'3. Data_Input_Sheet'!AC44) -> 0
B31: 11 | D31: Taxable Income | F31: =SUM(F28:F30) -> -1573021.1 | H31: =SUM(H28:H30) -> 751280.7107 | J31: =SUM(J28+J30) -> -863474.3982 | L31: =L28+L30 -> 1460827.412 | N31: =SUM(N28+N30) -> -14406768.3 | P31: =P28+P30 -> -14406768.3 | R31: =SUM(R28+R30) -> -14406768.3 | T31: =T28+T30 -> -14406768.3
B33: 12 | D33: Income Tax Rate | F33: ='6. Taxes_PILs'!G41 -> 0.265 | H33: ='6. Taxes_PILs'!G41 -> 0.265 | J33: ='6. Taxes_PILs'!K41 -> 0.265 | L33: ='6. Taxes_PILs'!K41 -> 0.265 | N33: ='6. Taxes_PILs'!O41 -> 0.265 | P33: ='6. Taxes_PILs'!O41 -> 0.265 | R33: ='6. Taxes_PILs'!S41 -> 0.265 | T33: ='6. Taxes_PILs'!S41 -> 0.265
B34: 13 | D34: Income Tax on Taxable Income | F34: =MAX(F31*F33,0) -> 0 | H34: =MAX(H31*H33,0) -> 199089.3883 | J34: =MAX(J31*J33,0) -> 0 | L34: =MAX(L31*L33,0) -> 387119.2643 | N34: =MAX(N31*N33,0) -> 0 | P34: =MAX(P31*P33,0) -> 0 | R34: =MAX(R31*R33,0) -> 0 | T34: =MAX(T31*T33,0) -> 0
B35: 14 | D35: Income Tax Credits | F35: ='3. Data_Input_Sheet'!E51 -> 0 | H35: ='3. Data_Input_Sheet'!E51 -> 0 | J35: =IF(ISBLANK('3. Data_Input_Sheet'!M51),'3. Data_Input_Sheet'!E51,'3. Data_Input_Sheet'!M51) -> 0 | L35: =IF(ISBLANK('3. Data_Input_Sheet'!M51),'3. Data_Input_Sheet'!E51,'3. Data_Input_Sheet'!M51) -> 0 | N35: =IF(ISBLANK('3. Data_Input_Sheet'!U51),'3. Data_Input_Sheet'!M51,'3. Data_Input_Sheet'!U51) -> 0 | P35: =IF(ISBLANK('3. Data_Input_Sheet'!U51),'3. Data_Input_Sheet'!M51,'3. Data_Input_Sheet'!U51) -> 0 | R35: =IF(ISBLANK('3. Data_Input_Sheet'!Y51),'3. Data_Input_Sheet'!Q51,'3. Data_Input_Sheet'!Y51) ->  | T35: =IF(ISBLANK('3. Data_Input_Sheet'!Y51),'3. Data_Input_Sheet'!Q51,'3. Data_Input_Sheet'!Y51) -> 
B36: 15 | D36: Utility Net Income | F36: =F28-SUM(F34:F35) -> 947480.9 | H36: ='5. Utility Income'!F37 -> 3074725.568 | J36: =J28-SUM(J34:J35) -> 1657027.602 | L36: ='5. Utility Income'!N37 -> -14603825.44 | N36: =N28-SUM(N34:N35) -> -14406768.3 | P36: ='5. Utility Income'!V37 -> -14603825.44 | R36: =R28-SUM(R34:R35) -> -14406768.3 | T36: ='5. Utility Income'!AD37 -> -14603825.44
B38: 16 | D38: Utility Rate Base | F38: ='4. Rate_Base'!G18 -> 83461606.08 | H38: ='4. Rate_Base'!G18 -> 83461606.08 | J38: ='4. Rate_Base'!O18 -> 77171797 | L38: ='4. Rate_Base'!O18 -> 77171797 | N38: ='4. Rate_Base'!W18 -> 77171797 | P38: ='4. Rate_Base'!W18 -> 77171797 | R38: ='4. Rate_Base'!AC18 -> 77171797 | T38: ='4. Rate_Base'!AC18 -> 77171797
B40: 17 | D40: Deemed Equity Portion of Rate Base | F40: ='7. Cost_of_Capital'!J24 -> 33384642.43 | H40: =F40 -> 33384642.43 | J40: ='7. Cost_of_Capital'!J40 -> 0 | L40: =J40 -> 0 | N40: ='7. Cost_of_Capital'!J56 -> 0 | P40: =N40 -> 0 | R40: ='7. Cost_of_Capital'!J72 -> 0 | T40: =R40 -> 0
B42: 18 | D42: Income/(Equity Portion of Rate Base) | F42: =IF(F40=0,0,F36/F40) -> 0.02838074129 | H42: =IF(H40=0,0,H36/H40) -> 0.0921 | J42: =IF(J40=0,0,J36/J40) -> 0 | L42: =IF(L40=0,0,L36/L40) -> 0 | N42: =IF(N40=0,0,N36/N40) -> 0 | P42: =IF(P40=0,0,P36/P40) -> 0 | R42: =IF(R40=0,0,R36/R40) -> 0 | T42: =IF(T40=0,0,T36/T40) -> 0
B43: 19 | D43: Target Return - Equity on Rate Base | F43: ='7. Cost_of_Capital'!L24 -> 0.0921 | H43: ='7. Cost_of_Capital'!L24 -> 0.0921 | J43: ='7. Cost_of_Capital'!L40 -> 0 | L43: ='7. Cost_of_Capital'!L40 -> 0 | N43: ='7. Cost_of_Capital'!L56 -> 0 | P43: ='7. Cost_of_Capital'!L56 -> 0 | R43: ='7. Cost_of_Capital'!L72 -> 0 | T43: ='7. Cost_of_Capital'!L72 -> 0
B44: 20 | D44: Deficiency/Sufficiency in Return on Equity | F44: =F42-F43 -> -0.06371925871 | H44: =H42-H43 -> 0 | J44: =J42-J43 -> 0 | L44: =L42-L43 -> 0 | N44: =N42-N43 -> 0 | P44: =P42-P43 -> 0 | R44: =R42-R43 -> 0 | T44: =T42-T43 -> 0
B46: 21 | D46: Indicated Rate of Return | F46: =IF(F38=0,0,(F36+F25)/F38) -> 0.03310829652 | H46: =IF(H38=0,0,(H36+H25)/H38) -> 0.058596 | J46: =IF(J38=0,0,(J36+J25)/J38) -> 0.02147193231 | L46: =IF(L40=0,0,(L36+L25)/L38) -> 0 | N46: =IF(N38=0,0,(N36+N25)/N38) -> -0.1866843699 | P46: =IF(P40=0,0,(P36+P25)/P38) -> 0 | R46: =IF(R38=0,0,(R36+R25)/R38) -> -0.1866843699 | T46: =IF(T40=0,0,(T36+T25)/T38) -> 0
B47: 22 | D47: Requested Rate of Return on Rate Base | F47: ='7. Cost_of_Capital'!L26 -> 0.058596 | H47: ='7. Cost_of_Capital'!L26 -> 0.058596 | J47: ='7. Cost_of_Capital'!L42 -> 0 | L47: ='7. Cost_of_Capital'!L42 -> 0 | N47: ='7. Cost_of_Capital'!L58 -> 0 | P47: ='7. Cost_of_Capital'!L58 -> 0 | R47: ='7. Cost_of_Capital'!L74 -> 0 | T47: ='7. Cost_of_Capital'!L74 -> 0
B48: 23 | D48: Deficiency/Sufficiency in Rate of Return | F48: =F46-F47 -> -0.02548770348 | H48: =H46-H47 -> 0 | J48: =J46-J47 -> 0.02147193231 | L48: =L46-L47 -> 0 | N48: =N46-N47 -> -0.1866843699 | P48: =P46-P47 -> 0 | R48: =R46-R47 -> -0.1866843699 | T48: =T46-T47 -> 0
B50: 24 | D50: Target Return on Equity | F50: =H50 -> 3074725.568 | H50: ='7. Cost_of_Capital'!P24 -> 3074725.568 | J50: =L50 -> 0 | L50: ='7. Cost_of_Capital'!P40 -> 0 | N50: =P50 -> 0 | P50: ='7. Cost_of_Capital'!P56 -> 0 | R50: =T50 -> 0 | T50: ='7. Cost_of_Capital'!P72 -> 0
B51: 25 | D51: Revenue Deficiency/(Sufficiency) | F51: =F50-F36 -> 2127244.668 | H51: =H38*H48 -> 0 | J51: =J50-J36 -> -1657027.602 | L51: =L38*L48 -> 0 | N51: =N50-N36 -> 14406768.3 | P51: =P38*P48 -> 0 | R51: =R50-R36 -> 14406768.3 | T51: =T38*T48 -> 0
B52: 26 | D52: Gross Revenue Deficiency/(Sufficiency) | F52: =F51/(1-F33) -> 2894210.432 | G52: (1) | J52: =J51/(1-J33) -> -2254459.322 | K52: (1) | N52: =N51/(1-N33) -> 19601045.31 | O52: (1) | R52: =R51/(1-R33) -> 19601045.31 | S52: (1)
B55: Notes:
B56: (1) | D56: Revenue Deficiency/Sufficiency divided by (1 - Tax Rate)

Sheet 9. Rev_Reqt
B11: Revenue Requirement
B13: Line No. | D13: Particulars | F13: Application | J13: =IF(ISBLANK('3. Data_Input_Sheet'!M12),"",'3. Data_Input_Sheet'!M12) -> Interrogatory Responses | N13: =IF(ISBLANK('3. Data_Input_Sheet'!U12),"",'3. Data_Input_Sheet'!U12) -> Settlement Agreement | R13: ='3. Data_Input_Sheet'!AC12 -> Per Board Decision
B15: 1 | D15: OM&A Expenses | F15: ='5. Utility Income'!F22 -> 10312735 | J15: ='5. Utility Income'!N22 -> 10312735 | N15: ='5. Utility Income'!V22 -> 10312735 | R15: ='5. Utility Income'!AD22 -> 10312735
B16: 2 | D16: Amortization/Depreciation | F16: ='5. Utility Income'!F23 -> 4050033.3 | J16: ='5. Utility Income'!N23 -> 4050033.3 | N16: ='5. Utility Income'!V23 -> 4050033.3 | R16: ='5. Utility Income'!AD23 -> 4050033.3
B17: 3 | D17: Property Taxes | F17: ='5. Utility Income'!F24 -> 44000 | J17: ='5. Utility Income'!N24 -> 44000 | N17: ='5. Utility Income'!V24 -> 44000 | R17: ='5. Utility Income'!AD24 -> 44000
B18: 4 | D18: Capital Taxes | F18: ='6. Taxes_PILs'!G25 -> 0 | J18: ='6. Taxes_PILs'!K25 -> 0 | N18: ='6. Taxes_PILs'!O25 -> 0 | R18: ='6. Taxes_PILs'!S25 -> 0
B19: 5 | D19: Income Taxes (Grossed up) | F19: ='6. Taxes_PILs'!G33 -> 197057.1429 | J19: ='6. Taxes_PILs'!K33 -> 197057.1429 | N19: ='6. Taxes_PILs'!O33 -> 197057.1429 | R19: ='6. Taxes_PILs'!S33 -> 197057.1429
B20: 6 | D20: Other Expenses | F20: ='5. Utility Income'!F26 -> 0 | J20: ='5. Utility Income'!N26 ->  | N20: ='5. Utility Income'!V26 ->  | R20: ='5. Utility Income'!AD26 -> 
B21: 7 | D21: Return
D22: Deemed Interest Expense | F22: ='8. Rev_Def_Suff'!F25 -> 1815790.702 | J22: ='8. Rev_Def_Suff'!L25 -> 0 | N22: ='8. Rev_Def_Suff'!P25 -> 0 | R22: ='8. Rev_Def_Suff'!T25 -> 0
D23: Return on Deemed Equity | F23: ='8. Rev_Def_Suff'!F50 -> 3074725.568 | J23: ='8. Rev_Def_Suff'!L50 -> 0 | N23: ='8. Rev_Def_Suff'!P50 -> 0 | R23: ='8. Rev_Def_Suff'!T50 -> 0
B25: 8 | D25: Service Revenue Requirement (before Revenues) | F25: =SUM(F15:F23) -> 19494341.71 | J25: =SUM(J15:J23) -> 14603825.44 | N25: =SUM(N15:N23) -> 14603825.44 | R25: =SUM(R15:R23) -> 14603825.44
B27: 9 | D27: Revenue Offsets | F27: ='3. Data_Input_Sheet'!E33 -> 1106244 | J27: ='3. Data_Input_Sheet'!M33 -> 0 | N27: ='3. Data_Input_Sheet'!U33 -> 0 | R27: ='3. Data_Input_Sheet'!AC33 -> 0
B28: 10 | D28: Base Revenue Requirement | F28: =F25-F27 -> 18388097.71 | J28: =J25-J27 -> 14603825.44 | N28: =N25-N27 -> 14603825.44 | R28: =R25-R27 -> 14603825.44
D29: (excluding Tranformer Owership Allowance credit adjustment)
B31: 11 | D31: Distribution revenue | F31: ='5. Utility Income'!F16 -> 18388097.71 | J31: ='5. Utility Income'!N16 -> 0 | N31: ='5. Utility Income'!V16 -> 0 | R31: ='5. Utility Income'!AD16 -> 0
B32: 12 | D32: Other revenue | F32: ='5. Utility Income'!F17 -> 1106244 | J32: ='5. Utility Income'!N17 -> 0 | N32: ='5. Utility Income'!V17 -> 0 | R32: ='5. Utility Income'!AD17 -> 0
B34: 13 | D34: Total revenue | F34: =SUM(F31:F32) -> 19494341.71 | J34: =SUM(J31:J32) -> 0 | N34: =SUM(N31:N32) -> 0 | R34: =SUM(R31:R32) -> 0
B36: 14 | D36: Difference (Total Revenue Less Distribution Revenue Requirement before Revenues) | F36: =F34-F25 -> 0 | H36: (1) | J36: =J34-J25 -> -14603825.44 | L36: (1) | N36: =N34-N25 -> -14603825.44 | P36: (1) | R36: =R34-R25 -> -14603825.44 | T36: (1)
D39: Summary Table of Revenue Requirement and Revenue Deficiency/Sufficiency
F41: =F13 -> Application | J41: =J13 -> Interrogatory Responses | L41: Δ% (2) | N41: =N13 -> Settlement Agreement | P41: Δ% (2) | R41: =R13 -> Per Board Decision | T41: Δ% (2)
D42: Service Revenue Requirement | F42: =F25 -> 19494341.71 | J42: =J25 -> 14603825.44 | L42: =IF($F42=0," ",(J42-$F42)/$F42) -> -0.2508685003 | N42: =N25 -> 14603825.44 | P42: =IF($F42=0," ",(N42-$F42)/$F42) -> -0.2508685003 | R42: =R25 -> 14603825.44 | T42: =IF($F42=0," ",(R42-$F42)/$F42) -> -0.2508685003
D43: Grossed-Up Revenue Deficiency/(Sufficiency) | F43: ='8. Rev_Def_Suff'!F52 -> 2894210.432 | J43: ='8. Rev_Def_Suff'!J52 -> -2254459.322 | L43: =IF($F43=0," ",(J43-$F43)/$F43) -> -1.778954874 | N43: ='8. Rev_Def_Suff'!N52 -> 19601045.31 | P43: =IF($F43=0," ",(N43-$F43)/$F43) -> 5.77250178 | R43: ='8. Rev_Def_Suff'!R52 -> 19601045.31 | T43: =IF($F43=0," ",(R43-$F43)/$F43) -> 5.77250178
D45: Base Revenue Requirement (to be recovered from Distribution Rates) | F45: =F28 -> 18388097.71 | J45: =J28 -> 14603825.44 | L45: =IF($F45=0," ",(J45-$F45)/$F45) -> -0.2058000957 | N45: =N28 -> 14603825.44 | P45: =IF($F45=0," ",(N45-$F45)/$F45) -> -0.2058000957 | R45: =R28 -> 14603825.44 | T45: =IF($F45=0," ",(R45-$F45)/$F45) -> -0.2058000957
D46: Revenue Deficiency/(Sufficiency) Associated with Base Revenue Requirement | F46: ='3. Data_Input_Sheet'!E26-'3. Data_Input_Sheet'!E25 -> 2324301.811 | J46: ='3. Data_Input_Sheet'!M26-'3. Data_Input_Sheet'!M25 -> 0 | L46: =IF($F46=0," ",(J46-$F46)/$F46) -> -1 | N46: ='3. Data_Input_Sheet'!U26-'3. Data_Input_Sheet'!U25 -> 0 | P46: =IF($F46=0," ",(N46-$F46)/$F46) -> -1 | R46: ='3. Data_Input_Sheet'!AC26-'3. Data_Input_Sheet'!AC25 -> 0 | T46: =IF($F46=0," ",(R46-$F46)/$F46) -> -1
B49: Notes
B50: (1) | D50: Line 11 - Line 8
B51: (2) | D51: Percentage Change Relative to Initial Application

Sheet 10. Load Forecast
B14: Load Forecast Summary
B16: This spreadsheet provides a summary of the customer and load forecast on which the test year revenue requirement is derived. The amounts serve as the denominators for deriving the rates to recover the test year revenue requirement for purposes of this RRWF.
B18: The information to be input is inclusive of any adjustments to kWh and kW to reflect the impacts of CDM programs up to and including CDM programs planned to be executed in the test year. i.e., the load forecast adjustments determined in Appendix 2-I should be incorporated into the entries. The inputs should correspond with the summary of the Load Forecast for the Test Year in Appendix 2-IB and in Exhibit 3 of the application.
B20: Appendix 2-IB is still required to be filled out, as it also provides a year-over-year variance analysis of demand growth andf trends from historical actuals to the Bridge and Test Year forecasts.
D22: Stage in Process: | F22: Initial Application
D24: Customer Class | F24: ='3. Data_Input_Sheet'!E12 -> Initial Application | L24: =IF(ISBLANK('3. Data_Input_Sheet'!M12)," ",'3. Data_Input_Sheet'!M12) -> Interrogatory Responses | R24: ='3. Data_Input_Sheet'!U12 -> Settlement Agreement | X24: ='3. Data_Input_Sheet'!AC12 -> Per Board Decision
D26: Input the name of each customer class. | F26: Customer / Connections | H26: kWh | J26: kW/kVA (1) | L26: =F26 -> Customer / Connections | N26: =H26 -> kWh | P26: kW/kVA (1) | R26: =F26 -> Customer / Connections | T26: =H26 -> kWh | V26: kW/kVA (1) | X26: =L26 -> Customer / Connections | Z26: =N26 -> kWh | AB26: kW/kVA (1)
F27: Test Year average or mid-year | H27: Annual | J27: Annual | L27: =F27 -> Test Year average or mid-year | N27: =H27 -> Annual | P27: =J27 -> Annual | R27: =F27 -> Test Year average or mid-year | T27: =H27 -> Annual | V27: =J27 -> Annual | X27: =L27 -> Test Year average or mid-year | Z27: =N27 -> Annual | AB27: =P27 -> Annual
B29: 1 | D29: Residential | F29: 29454.27285 | H29: 284634105.8
B30: 2 | D30: GS<50 | F30: 2097.759569 | H30: 70835308.35
B31: 3 | D31: GS>50 | F31: 234.5157143 | H31: 197879032.8 | J31: 698414.0591
B32: 4 | D32: Embedded Distributor | F32: 4 | H32: 34244754.12 | J32: 90871.25284
B33: 5 | D33: Street Light | F33: 2828.263259 | H33: 2433600.525 | J33: 7372.485653
B34: 6 | D34: Sentinel Light | F34: 215.9454468 | H34: 262327.7887 | J34: 716.347083
B35: 7 | D35: USL | F35: 122.7694883 | H35: 1383562.22
B36: 8
B37: 9
B38: 10
B39: 11
B40: 12
B41: 13
B42: 14
B43: 15
B44: 16
B45: 17
B46: 18
B47: 19
B48: 20
D50: Total | H50: =SUM(H29:H48) -> 591672691.6 | J50: =SUM(J29:J48) -> 797374.1447 | N50: =SUM(N29:N48) -> 0 | P50: =SUM(P29:P48) -> 0 | T50: =SUM(T29:T48) -> 0 | V50: =SUM(V29:V48) -> 0
B52: Notes:
B54: (1) | C54: Input kW or kVA for those customer classes for which billing is based on demand (kW or kVA) versus energy consumption (kWh)

Sheet 11. Cost_Allocation
B14: Cost Allocation and Rate Design
B16: This spreadsheet replaces Appendix 2-P and provides a summary of the results from the Cost Allocation spreadsheet, and is used in the determination of the class revenue requirement and, hence, ultimately, the determination of rates from customers in all classes to recover the revenue requirement.
C20: Stage in Application Process: | E20: =IF(ISBLANK('10. Load Forecast'!F22),"",'10. Load Forecast'!F22) -> Initial Application
B22: A) | C22: Allocated Costs
C24: Name of Customer Class (3) | E24: Costs Allocated from Previous Study (1) | G24: % | I24: Allocated Class Revenue Requirement (1) | K24: %
C25: From Sheet 10. Load Forecast
I26: (7A)
B28: 1 | C28: =IF(ISBLANK('10. Load Forecast'!D29),"",'10. Load Forecast'!D29) -> Residential | E28: 9625174.477 | G28: =IF(E$49=0,"",E28/E$49) -> 0.741941099 | I28: 14684863.81 | K28: =IF(I$49=0,"",I28/I$49) -> 0.7532885467
B29: 2 | C29: =IF(ISBLANK('10. Load Forecast'!D30),"",'10. Load Forecast'!D30) -> GS<50 | E29: 1467051.516 | G29: =IF(E$49=0,"",E29/E$49) -> 0.1130853073 | I29: 2078386.778 | K29: =IF(I$49=0,"",I29/I$49) -> 0.1066148775
B30: 3 | C30: =IF(ISBLANK('10. Load Forecast'!D31),"",'10. Load Forecast'!D31) -> GS>50 | E30: 1555011.376 | G30: 0.1198655517 | I30: 2201557.702 | K30: 0.1129331687
B31: 4 | C31: =IF(ISBLANK('10. Load Forecast'!D32),"",'10. Load Forecast'!D32) -> Embedded Distributor | E31: 98707.53083 | G31: 0.00760871131 | I31: 117414.3584 | K31: 0.00602299705
B32: 5 | C32: =IF(ISBLANK('10. Load Forecast'!D33),"",'10. Load Forecast'!D33) -> Street Light | E32: 155290.3512 | G32: 0.01197030705 | I32: 305066.3704 | K32: 0.01564897065
B33: 6 | C33: =IF(ISBLANK('10. Load Forecast'!D34),"",'10. Load Forecast'!D34) -> Sentinel Light | E33: 21704.15683 | G33: 0.001673030033 | I33: 56492.10394 | K33: 0.002897871947
B34: 7 | C34: =IF(ISBLANK('10. Load Forecast'!D35),"",'10. Load Forecast'!D35) -> USL | E34: 50023.66244 | G34: 0.00385599359 | I34: 50559.88974 | K34: 0.002593567524
B35: 8 | C35: =IF(ISBLANK('10. Load Forecast'!D36),"",'10. Load Forecast'!D36) ->  | G35: 0 | K35: 0
B36: 9 | C36: =IF(ISBLANK('10. Load Forecast'!D37),"",'10. Load Forecast'!D37) ->  | G36: 0 | K36: 0
B37: 10 | C37: =IF(ISBLANK('10. Load Forecast'!D38),"",'10. Load Forecast'!D38) ->  | G37: 0 | K37: 0
B38: 11 | C38: =IF(ISBLANK('10. Load Forecast'!D39),"",'10. Load Forecast'!D39) ->  | G38: 0 | K38: 0
B39: 12 | C39: =IF(ISBLANK('10. Load Forecast'!D40),"",'10. Load Forecast'!D40) ->  | G39: 0 | K39: 0
B40: 13 | C40: =IF(ISBLANK('10. Load Forecast'!D41),"",'10. Load Forecast'!D41) ->  | G40: 0 | K40: 0
B41: 14 | C41: =IF(ISBLANK('10. Load Forecast'!D42),"",'10. Load Forecast'!D42) ->  | G41: 0 | K41: 0
B42: 15 | C42: =IF(ISBLANK('10. Load Forecast'!D43),"",'10. Load Forecast'!D43) ->  | G42: 0 | K42: 0
B43: 16 | C43: =IF(ISBLANK('10. Load Forecast'!D44),"",'10. Load Forecast'!D44) ->  | G43: 0 | K43: 0
B44: 17 | C44: =IF(ISBLANK('10. Load Forecast'!D45),"",'10. Load Forecast'!D45) ->  | G44: 0 | K44: 0
B45: 18 | C45: =IF(ISBLANK('10. Load Forecast'!D46),"",'10. Load Forecast'!D46) ->  | G45: 0 | K45: 0
B46: 19 | C46: =IF(ISBLANK('10. Load Forecast'!D47),"",'10. Load Forecast'!D47) ->  | G46: 0 | K46: 0
B47: 20 | C47: =IF(ISBLANK('10. Load Forecast'!D48),"",'10. Load Forecast'!D48) ->  | G47: 0 | K47: 0
C49: Total | E49: =SUM(E28:E47) -> 12972963.07 | G49: =SUM(G28:G47) -> 1 | I49: =SUM(I28:I47) -> 19494341.01 | K49: =SUM(K28:K47) -> 1
C51: =IF(I51=0,"",IF(ABS(I51-I49)<(0.001*I51)," ","Allocated Revenue Requirement does not match Base Revenue Requirement from Sheet 9. Check data.")) ->  | E51: Service Revenue Requirement (from Sheet 9) | I51: =IF(ISBLANK(E20),"",IF(E20='13. Rate Design'!AC4,'9. Rev_Reqt'!F25,IF(E20='13. Rate Design'!AC6,'9. Rev_Reqt'!N25,'9. Rev_Reqt'!J25))) -> 19494341.71
B53: (1) | C53: Class Allocated Revenue Requirement, from Sheet O-1, Revenue to Cost || RR, row 40, from the Cost Allocation Study in this application. This excludes costs in deferral and variance accounts. For Embedded Distributors, Account 4750 - Low Voltage (LV) Costs are also excluded.
B54: (2) | C54: Host Distributors - Provide information on any embedded distributor(s) as a separate class, if applicable. If embedded distributors are billed in a General Service class, include the allocated costs and revenues of the embedded distributor(s) in the applicable class, and also complete Appendix 2-Q.
B55: (3) | C55: Customer Classes - If these differ from those in place in the previous cost allocation study, modify the customer classes to match the proposal in the current application as closely as possible.
B57: B) | C57: Calculated Class Revenues
C59: Name of Customer Class | E59: Load Forecast (LF) X current approved rates | G59: LF X current approved rates X (1+d) | I59: LF X Proposed Rates | K59: Miscellaneous Revenues
E60: (7B) | G60: (7C) | I60: (7D) | K60: (7E)
B62: 1 | C62: =IF(ISBLANK(C28),"",C28) -> Residential | E62: 10992334.63 | G62: 12582836.38 | I62: 12956334.04 | K62: 883263.2418
B63: 2 | C63: =IF(ISBLANK(C29),"",C29) -> GS<50 | E63: 2075033.683 | G63: 2375274.244 | I63: 2375274.244 | K63: 117224.6727
B64: 3 | C64: GS>50 | E64: 2549448.483 | G64: 2918333.022 | I64: 2555629.491 | K64: 86239.75163
B65: 4 | C65: Embedded Distributor | E65: 161603.3448 | G65: 184986.0394 | I65: 140321.7944 | K65: 575.4356849
B66: 5 | C66: Street Light | E66: 208081.5426 | G66: 238189.2559 | I66: 273940.7664 | K66: 13565.86393
B67: 6 | C67: Sentinel Light | E67: 17145.17134 | G67: 19625.93871 | I67: 28182.08512 | K67: 3117.754035
B68: 7 | C68: USL | E68: 60149.04806 | G68: 68852.12795 | I68: 58414.58745 | K68: 2257.280235
B69: 8
B70: 9
B71: 10
B72: 11
B73: 12
B74: 13
B75: 14
B76: 15
B77: 16
B78: 17
B79: 18
B80: 19
B81: 20
C83: Total | E83: =SUM(E62:E81) -> 16063795.9 | G83: =SUM(G62:G81) -> 18388097.01 | I83: =SUM(I62:I81) -> 18388097.01 | K83: =SUM(K62:K81) -> 1106244
B86: (4) | C86: In columns 7B to 7D, LF means Load Forecast of Annual Billing Quantities (i.e., customers or connections, as applicable X 12 months, and kWh, kW or kVA as applicable. Revenue quantities should be net of the Transformer Ownership Allowance for applicable customer classes. Exclude revenues from rate adders and rate riders.
B87: (5) | C87: Columns 7C and 7D - Column Total should equal the Base Revenue Requirement for each.
B88: (6) | C88: Column 7C - The OEB-issued cost allocation model calculates "1+d" on worksheet O-1, cell C22. "d" is defined as Revenue Deficiency/Revenue at Current Rates.
B89: (7) | C89: Column 7E - If using the OEB-issued cost allocation model, enter Miscellaneous Revenues as it appears on worksheet O-1, row 19.
B91: C) | C91: Rebalancing Revenue-to-Cost Ratios
C93: Name of Customer Class | E93: Previously Approved Ratios | G93: Status Quo Ratios | I93: Proposed Ratios | K93: Policy Range
E94: Most Recent Year: | G94: (7C + 7E) / (7A) | I94: (7D + 7E) / (7A)
E95: 2018
E96: % | G96: % | I96: % | K96: %
B98: 1 | C98: =IF(ISBLANK(C62),"",C62) -> Residential | E98: 0.9616 | G98: =IF(ISBLANK(I28),"",(G62+K62)/I28) -> 0.9170054146 | I98: =IF(ISBLANK(I28),"",(I62+K62)/I28) -> 0.9424396076 | K98: 85 - 115 | M98: =IF(ISBLANK(K98),"",LEFT(K98,2)/100) -> 0.85 | N98: =IF(ISBLANK(K98),"",RIGHT(K98,3)/100) -> 1.15 | O98: 85 - 115
B99: 2 | C99: GS<50 | E99: 1.1682 | G99: 1.199246907 | I99: 1.199246907 | K99: 80 - 120 | M99: =IF(ISBLANK(K99),"",LEFT(K99,2)/100) -> 0.8 | N99: =IF(ISBLANK(K99),"",RIGHT(K99,3)/100) -> 1.2 | O99: 80 - 120
B100: 3 | C100: GS>50 | E100: 1.037 | G100: 1.364748592 | I100: 1.2 | K100: 80 - 120 | M100: 0.8 | N100: 1.2
B101: 4 | C101: Embedded Distributor | E101: 1.2 | G101: 1.580398493 | I101: 1.2 | K101: 80 - 120 | M101: 0.8 | N101: 1.2
B102: 5 | C102: Street Light | E102: 1.2 | G102: 0.8252470421 | I102: 0.9424396076 | K102: 80 - 120 | M102: 0.8 | N102: 1.2
B103: 6 | C103: Sentinel Light | E103: 1.2 | G103: 0.402599499 | I103: 0.5540568855 | K103: 80 - 120 | M103: 0.8 | N103: 1.2
B104: 7 | C104: USL | E104: 1.2 | G104: 1.406439147 | I104: 1.2 | K104: 80 - 120 | M104: 0.8 | N104: 1.2
B105: 8
B106: 9
B107: 10
B108: 11
B109: 12
B110: 13
B111: 14
B112: 15
B113: 16
B114: 17
B115: 18
B116: 19
B117: 20
B120: (8) | C120: Previously Approved Revenue-to-Cost (R/C) Ratios - For most applicants, the most recent year would be the third year (at the latest) of the Price Cap IR period. For example, if the applicant, rebased in 2020 with further adjustments to move within the range over two years, the Most Recent Year would be 2023. However, the ratios in 2023 would be equal to those after the adjustment in 2022.
B121: (9) | C121: Status Quo Ratios - The OEB-issued cost allocation model provides the Status Quo Ratios on Worksheet O-1. The Status Quo means "Before Rebalancing".
B122: (10) | C122: Ratios shown in red are outside of the allowed range. Applies to both Tables C and D.
B124: (D) | C124: Proposed Revenue-to-Cost Ratios (11)
C126: Name of Customer Class | E126: Proposed Revenue-to-Cost Ratio | K126: Policy Range
E127: Test Year | G127: Price Cap IR Period
E128: 2025 | G128: =E128+1 -> 2026 | I128: =G128+1 -> 2027
B130: 1 | C130: =IF(ISBLANK(C98),"",C98) -> Residential | E130: =I98 -> 0.9424396076 | G130: 0.9421 | I130: 0.9417 | K130: =IF(ISBLANK(K98),"",K98) -> 85 - 115 | M130: =IF(K130="","",LEFT(K130,2)/100) -> 0.85 | N130: =IF(K130="","",RIGHT(K130,3)/100) -> 1.15
B131: 2 | C131: =IF(ISBLANK(C99),"",C99) -> GS<50 | E131: =I99 -> 1.199246907 | G131: =IF(E131=0,"",E131) -> 1.199246907 | I131: =IF(G131=0,"",G131) -> 1.199246907 | K131: =IF(ISBLANK(K99),"",K99) -> 80 - 120 | M131: =IF(K131="","",LEFT(K131,2)/100) -> 0.8 | N131: =IF(K131="","",RIGHT(K131,3)/100) -> 1.2
B132: 3 | C132: GS>50 | E132: 1.2 | G132: 1.2 | I132: 1.2 | K132: 80 - 120 | M132: 0.8 | N132: 1.2
B133: 4 | C133: Embedded Distributor | E133: 1.2 | G133: 1.2 | I133: 1.2 | K133: 80 - 120 | M133: 0.8 | N133: 1.2
B134: 5 | C134: Street Light | E134: 0.9424396076 | G134: =G130 -> 0.9421 | I134: =I130 -> 0.9417 | K134: 80 - 120 | M134: 0.8 | N134: 1.2
B135: 6 | C135: Sentinel Light | E135: 0.5540568855 | G135: 0.6315 | I135: 0.7424 | K135: 80 - 120 | M135: 0.8 | N135: 1.2
B136: 7 | C136: USL | E136: 1.2 | G136: 1.2 | I136: 1.2 | K136: 80 - 120 | M136: 0.8 | N136: 1.2
B137: 8
B138: 9
B139: 10
B140: 11
B141: 12
B142: 13
B143: 14
B144: 15
B145: 16
B146: 17
B147: 18
B148: 19
B149: 20
B152: (11) | C152: The applicant should complete Table D if it is applying for approval of a revenue-to-cost ratio in 2025 that is outside of the OEB's policy range for any customer class. Table D will show that the distributor is likely to enter into the 2026 and 2027 Price Cap IR models, as necessary. For 2026 and 2027, enter the planned revenue-to-cost ratios that will be "Change" or "No Change" in 2026 (in the current Revenue/Cost Ratio Adjustment Workform, Worksheet C1.1 'Decision - Cost Revenue Adjustment, column d), and enter TBD for class(es) that will be entered as 'Rebalance'.

Sheet 12. Res_Rate_Design
B14: New Rate Design Policy For Residential Customers
B16: Please complete the following tables.
B18: A | C18: Data Inputs (from Sheet 10. Load Forecast)
C20: Test Year Billing Determinants for Residential Class
C21: Customers | D21: =VLOOKUP("Residential",'13. Rate Design'!D28:L47,5,FALSE) -> 29454.27285
C22: kWh | D22: =VLOOKUP("Residential",'13. Rate Design'!D28:L47,7,FALSE) -> 284634105.8
C24: Proposed Residential Class Specific Revenue Requirement1 | D24: =VLOOKUP("Residential",'11. Cost_Allocation'!C62:K81,7,FALSE) -> 12956334.04
C26: Residential Base Rates on Current Tariff
C27: Monthly Fixed Charge ($)
C28: Distribution Volumetric Rate ($/kWh)
B31: B | C31: Current Fixed/Variable Split
D33: Base Rates | E33: Billing Determinants | F33: Revenue | G33: % of Total Revenue
C34: Fixed | D34: =IF(D27="","",D27) ->  | E34: =IF(D21="","",D21) -> 29454.27285 | F34: =IF(ISERROR(D34*E34*12),"",D34*E34*12) ->  | G34: =IF(ISERROR(F34/F36),"",F34/F36) -> 
C35: Variable | D35: =IF(D28="","",D28) ->  | E35: =IF(D22="","",D22) -> 284634105.8 | F35: =IF(ISERROR(D35*E35),"",D35*E35) ->  | G35: =IF(ISERROR(F35/F36),"",F35/F36) -> 
C36: TOTAL | D36: - | E36: - | F36: =IF(ISERROR(F34+F35),"",F34+F35) ->  | G36: -
B38: C | C38: Calculating Test Year Base Rates
C40: Number of Remaining Rate Design Policy Transition Years2
D42: Test Year Revenue @ Current F/V Split | E42: Test Year Base Rates @ Current F/V Split | F42: Reconciliation - Test Year Base Rates @ Current F/V Split
C43: Fixed | D43: =IF(ISERROR(D$24*G34),"",D$24*G34) ->  | E43: =IF(ISERROR(ROUND(D43/D21/12,2)),"",ROUND(D43/D21/12,2)) ->  | F43: =IF(ISERROR(E43*D21*12),"",E43*D21*12) -> 
C44: Variable | D44: =IF(ISERROR(D$24*G35),"",D$24*G35) ->  | E44: =IF(ISERROR(ROUND(D44/D22,4)),"",ROUND(D44/D22,4)) ->  | F44: =IF(ISERROR(E44*D22),"",E44*D22) -> 
C45: TOTAL | D45: =IF(ISERROR(D43+D44),"",D43+D44) ->  | E45: - | F45: =IF(ISERROR(F43+F44),"",F43+F44) -> 
D47: New F/V Split | E47: Revenue @ new F/V Split | F47: Final Adjusted Base Rates | G47: Revenue Reconciliation @ Adjusted Rates
C48: Fixed | D48: =IF(ISERROR(((1-G34)/D40)+G34),"",((1-G34)/D40)+G34) ->  | E48: =IF(ISERROR(D48*D$24),"",D48*D$24) ->  | F48: =IF(ISERROR(ROUND(E48/D21/12,2)),"",ROUND(E48/D21/12,2)) ->  | G48: =IF(ISERROR(F48*12*D21),"",F48*12*D21) -> 
C49: Variable | D49: =IF(ISERROR(1-D48),"",1-D48) ->  | E49: =IF(ISERROR(D49*D$24),"",D49*D$24) ->  | F49: =IF(ISERROR(ROUND(E49/D22,4)),"",ROUND(E49/D22,4)) ->  | G49: =IF(ISERROR(F49*D22),"",F49*D22) -> 
C50: TOTAL | D50: - | E50: =IF(ISERROR(SUM(E48:E49)),"",SUM(E48:E49)) -> 0 | F50: - | G50: =IF(ISERROR(G48+G49),"",G48+G49) -> 
C52: Checks3
C53: Change in Fixed Rate | D53: =IF(ISERROR(F48-E43),"",F48-E43) -> 
C54: Difference Between Revenues @ Proposed Rates and Class Specific Revenue Requirement | D54: =IF(ISERROR((F48*12*D21)+(F49*D22)-D24),"",(F48*12*D21)+(F49*D22)-D24) -> 
D55: =IF(ISERROR(D54/D24), "", D54/D24) -> 
B57: Notes:
B59: 1 | C59: The final residential class specific revenue requirement, excluding allocated Miscellaneous Revenues, as shown on Sheet 11. Cost Allocation, should be used (i.e. the revenue requirement after any proposed adjustments to R/C ratios).
B62: 2 | C62: The distributor should enter the number of years remaining before the transition to fully fixed rates is completed. The change in residential rate design is almost complete and distributors should have either 0 or 1 year remaining. If the distributor has fully transitioned to fixed rates put "0" in cell D40. If the distributor has proposed an additional transition year because the change in the residential rate design will result in the fixed charge increasing by more than $4/year, put "1" in cell D40.
B67: 3 | C67: Change in fixed rate due to rate design policy should be less than $4. The difference between the proposed class revenue requirement and the revenue at calculated base rates should be minimal (i.e. should be reasonably considered as a rounding error)

Sheet 13. Rate Design
AC4: ='3. Data_Input_Sheet'!E12 -> Initial Application | AD4: 1 | AE4: F | AF4: H | AG4: J
AC5: =IF(ISBLANK('3. Data_Input_Sheet'!M12)," ",'3. Data_Input_Sheet'!M12) -> Interrogatory Responses | AD5: 2 | AE5: L | AF5: N | AG5: P
AC6: =IF(ISBLANK('3. Data_Input_Sheet'!U12)," ",'3. Data_Input_Sheet'!U12) -> Settlement Agreement | AD6: 3 | AE6: R | AF6: T | AG6: V
AC7: ='3. Data_Input_Sheet'!AC12 -> Per Board Decision
B15: Rate Design and Revenue Reconciliation
B17: This sheet replaces Appendix 2-V, and provides a simplified model for calculating the standard monthly and voluemtric rates based on the allocated class revenues and fixed/variable split resulting from the cost allocation study and rate design and as proposed by the applicant. However, the RRWF does not replace the rate generator model that an applicant distributor may use in support of its application. The RRWF provides a demonstrative check on the derivation of the revenue requirement and on the proposed base distribution rates to recover the revenue requirement, based on summary information from a more detailed rate generator model and other models that applicants use for cost allocation, load forecasting, taxes/PILs, etc.
D20: Stage in Process: | H20: =IF(ISBLANK('10. Load Forecast'!F22),"",'10. Load Forecast'!F22) -> Initial Application | O20: Class Allocated Revenues | AA20: Distribution Rates | AK20: Revenue Reconciliation
D22: Customer and Load Forecast | O22: From Sheet 11. Cost Allocation and Sheet 12. Residential Rate Design | U22: Fixed / Variable Splits 2,3
U23: Percentage to be entered as a fraction between 0 and 1
D24: Customer Class | F24: Volumetric Charge Determinant | H24: Customers / Connections | J24: kWh | L24: kW or kVA | O24: Total Class Revenue Requirement | Q24: Monthly Service Charge | S24: Volumetric | Y24: Transformer Ownership Allowance 1 ($) | AA24: Monthly Service Charge 2 | AE24: Volumetric Rate 3 | AO24: Distribution Revenues less Transformer Ownership Allowance
U25: Fixed | W25: Variable
D26: From sheet 10. Load Forecast | AA26: Rate | AC26: No. of decimals | AE26: Rate | AI26: No. of decimals | AK26: MSC Revenues | AM26: Volumetric revenues
B28: 1 | D28: =IF(ISBLANK('10. Load Forecast'!D29),"",'10. Load Forecast'!D29) -> Residential | F28: kWh | H28: =IF(ISBLANK($H$20),0,IF($H$20=$AC$4,'10. Load Forecast'!F29,IF($H$20=$AC$5,'10. Load Forecast'!L29,IF($H$20=$AC$6,'10. Load Forecast'!R29,'10. Load Forecast'!X29)))) -> 29454.27285 | J28: =IF(ISBLANK($H$20),0,IF($H$20=$AC$4,'10. Load Forecast'!H29,IF($H$20=$AC$5,'10. Load Forecast'!N29,IF($H$20=$AC$6,'10. Load Forecast'!T29,'10. Load Forecast'!Z29)))) -> 284634105.8 | L28: =IF(ISBLANK($H$20),0,IF($H$20=$AC$4,'10. Load Forecast'!J29,IF($H$20=$AC$5,'10. Load Forecast'!P29,IF($H$20=$AC$6,'10. Load Forecast'!V29,'10. Load Forecast'!AB29)))) -> 0 | O28: =IF(ISBLANK('11. Cost_Allocation'!I62),"",'11. Cost_Allocation'!I62) -> 12956334.04 | Q28: =IF(ISBLANK(U28),"",O28*U28) -> 12956334.04 | S28: =IF(Q28="","",O28-Q28) -> 0 | U28: 1 | W28: =IF(ISBLANK(U28),"",1-U28) -> 0 | AA28: =IF(O28="","",IF(H28=0,0,IF(U28=0,0,ROUND(Q28/(H28*12),AC28)))) -> 36.66 | AC28: 2 | AE28: =IF(S28="","",ROUND(IF(F28="kWh",(S28+Y28)/J28,(S28+Y28)/L28),AI28)) -> 0 | AG28: =IF(ISBLANK(F28),"",CONCATENATE("/",F28)) -> /kWh | AI28: 4 | AK28: =IF(AA28="",0,AA28*H28*12) -> 12957523.71 | AM28: =ROUND(IF(AE28="",0,IF(F28="kWh",J28*AE28,IF(F28="kW",IF(AE28="",0,AE28*L28)))),AI28) -> 0 | AO28: =ROUND(AK28+AM28-Y28,2) -> 12957523.71
B29: 2 | D29: =IF(ISBLANK('10. Load Forecast'!D30),"",'10. Load Forecast'!D30) -> GS<50 | F29: kWh | H29: =IF(ISBLANK($H$20),0,IF($H$20=$AC$4,'10. Load Forecast'!F30,IF($H$20=$AC$5,'10. Load Forecast'!L30,IF($H$20=$AC$6,'10. Load Forecast'!R30,'10. Load Forecast'!X30)))) -> 2097.759569 | J29: =IF(ISBLANK($H$20),0,IF($H$20=$AC$4,'10. Load Forecast'!H30,IF($H$20=$AC$5,'10. Load Forecast'!N30,IF($H$20=$AC$6,'10. Load Forecast'!T30,'10. Load Forecast'!Z30)))) -> 70835308.35 | L29: =IF(ISBLANK($H$20),0,IF($H$20=$AC$4,'10. Load Forecast'!J30,IF($H$20=$AC$5,'10. Load Forecast'!P30,IF($H$20=$AC$6,'10. Load Forecast'!V30,'10. Load Forecast'!AB30)))) -> 0 | O29: =IF(ISBLANK('11. Cost_Allocation'!I63),"",'11. Cost_Allocation'!I63) -> 2375274.244 | Q29: =IF(ISBLANK(U29),"",O29*U29) -> 1124986.502 | S29: =IF(Q29="","",O29-Q29) -> 1250287.742 | U29: 0.4736238372 | W29: =IF(ISBLANK(U29),"",1-U29) -> 0.5263761628 | AA29: =IF(O29="","",IF(H29=0,0,IF(U29=0,0,ROUND(Q29/(H29*12),AC29)))) -> 44.69 | AC29: =AC28 -> 2 | AE29: =IF(S29="","",ROUND(IF(F29="kWh",(S29+Y29)/J29,(S29+Y29)/L29),AI29)) -> 0.0177 | AG29: /kWh | AI29: =AI28 -> 4 | AK29: =IF(AA29="",0,AA29*H29*12) -> 1124986.502 | AM29: =ROUND(IF(AE29="",0,IF(F29="kWh",J29*AE29,IF(F29="kW",IF(AE29="",0,AE29*L29)))),AI29) -> 1253784.958 | AO29: =ROUND(AK29+AM29-Y29,2) -> 2378771.46
B30: 3 | D30: =IF(ISBLANK('10. Load Forecast'!D31),"",'10. Load Forecast'!D31) -> GS>50 | F30: kW | H30: =IF(ISBLANK($H$20),0,IF($H$20=$AC$4,'10. Load Forecast'!F31,IF($H$20=$AC$5,'10. Load Forecast'!L31,IF($H$20=$AC$6,'10. Load Forecast'!R31,'10. Load Forecast'!X31)))) -> 234.5157143 | J30: =IF(ISBLANK($H$20),0,IF($H$20=$AC$4,'10. Load Forecast'!H31,IF($H$20=$AC$5,'10. Load Forecast'!N31,IF($H$20=$AC$6,'10. Load Forecast'!T31,'10. Load Forecast'!Z31)))) -> 197879032.8 | L30: =IF(ISBLANK($H$20),0,IF($H$20=$AC$4,'10. Load Forecast'!J31,IF($H$20=$AC$5,'10. Load Forecast'!P31,IF($H$20=$AC$6,'10. Load Forecast'!V31,'10. Load Forecast'!AB31)))) -> 698414.0591 | O30: =IF(ISBLANK('11. Cost_Allocation'!I64),"",'11. Cost_Allocation'!I64) -> 2555629.491 | Q30: 772157.0602 | S30: 1783472.431 | U30: 0.3021396736 | W30: 0.6978603264 | Y30: 75810.6 | AA30: 274.38 | AC30: =AC29 -> 2 | AE30: 2.6622 | AG30: /kW | AI30: =AI29 -> 4 | AK30: 772157.0602 | AM30: 1859317.908 | AO30: 2555664.37
B31: 4 | D31: =IF(ISBLANK('10. Load Forecast'!D32),"",'10. Load Forecast'!D32) -> Embedded Distributor | F31: kW | H31: =IF(ISBLANK($H$20),0,IF($H$20=$AC$4,'10. Load Forecast'!F32,IF($H$20=$AC$5,'10. Load Forecast'!L32,IF($H$20=$AC$6,'10. Load Forecast'!R32,'10. Load Forecast'!X32)))) -> 4 | J31: =IF(ISBLANK($H$20),0,IF($H$20=$AC$4,'10. Load Forecast'!H32,IF($H$20=$AC$5,'10. Load Forecast'!N32,IF($H$20=$AC$6,'10. Load Forecast'!T32,'10. Load Forecast'!Z32)))) -> 34244754.12 | L31: =IF(ISBLANK($H$20),0,IF($H$20=$AC$4,'10. Load Forecast'!J32,IF($H$20=$AC$5,'10. Load Forecast'!P32,IF($H$20=$AC$6,'10. Load Forecast'!V32,'10. Load Forecast'!AB32)))) -> 90871.25284 | O31: =IF(ISBLANK('11. Cost_Allocation'!I65),"",'11. Cost_Allocation'!I65) -> 140321.7944 | Q31: 27030.72 | S31: 113291.0744 | U31: 0.1926337966 | W31: 0.8073662034 | AA31: 563.14 | AC31: 2 | AE31: 1.2467 | AG31: /kW | AI31: 4 | AK31: 27030.72 | AM31: 113289.1909 | AO31: 140319.91
B32: 5 | D32: =IF(ISBLANK('10. Load Forecast'!D33),"",'10. Load Forecast'!D33) -> Street Light | F32: kW | H32: =IF(ISBLANK($H$20),0,IF($H$20=$AC$4,'10. Load Forecast'!F33,IF($H$20=$AC$5,'10. Load Forecast'!L33,IF($H$20=$AC$6,'10. Load Forecast'!R33,'10. Load Forecast'!X33)))) -> 2828.263259 | J32: =IF(ISBLANK($H$20),0,IF($H$20=$AC$4,'10. Load Forecast'!H33,IF($H$20=$AC$5,'10. Load Forecast'!N33,IF($H$20=$AC$6,'10. Load Forecast'!T33,'10. Load Forecast'!Z33)))) -> 2433600.525 | L32: =IF(ISBLANK($H$20),0,IF($H$20=$AC$4,'10. Load Forecast'!J33,IF($H$20=$AC$5,'10. Load Forecast'!P33,IF($H$20=$AC$6,'10. Load Forecast'!V33,'10. Load Forecast'!AB33)))) -> 7372.485653 | O32: =IF(ISBLANK('11. Cost_Allocation'!I66),"",'11. Cost_Allocation'!I66) -> 273940.7664 | Q32: 172410.9282 | S32: 101529.8382 | U32: 0.6293730228 | W32: 0.3706269772 | AA32: 5.08 | AC32: 2 | AE32: 13.7715 | AG32: /kW | AI32: 4 | AK32: 172410.9282 | AM32: 101530.1862 | AO32: 273941.11
B33: 6 | D33: =IF(ISBLANK('10. Load Forecast'!D34),"",'10. Load Forecast'!D34) -> Sentinel Light | F33: kW | H33: =IF(ISBLANK($H$20),0,IF($H$20=$AC$4,'10. Load Forecast'!F34,IF($H$20=$AC$5,'10. Load Forecast'!L34,IF($H$20=$AC$6,'10. Load Forecast'!R34,'10. Load Forecast'!X34)))) -> 215.9454468 | J33: =IF(ISBLANK($H$20),0,IF($H$20=$AC$4,'10. Load Forecast'!H34,IF($H$20=$AC$5,'10. Load Forecast'!N34,IF($H$20=$AC$6,'10. Load Forecast'!T34,'10. Load Forecast'!Z34)))) -> 262327.7887 | L33: =IF(ISBLANK($H$20),0,IF($H$20=$AC$4,'10. Load Forecast'!J34,IF($H$20=$AC$5,'10. Load Forecast'!P34,IF($H$20=$AC$6,'10. Load Forecast'!V34,'10. Load Forecast'!AB34)))) -> 716.347083 | O33: =IF(ISBLANK('11. Cost_Allocation'!I67),"",'11. Cost_Allocation'!I67) -> 28182.08512 | Q33: 15729.46635 | S33: 12452.61878 | U33: 0.5581370674 | W33: 0.4418629326 | AA33: 6.07 | AC33: 2 | AE33: 17.3835 | AG33: /kW | AI33: 4 | AK33: 15729.46635 | AM33: 12452.6195 | AO33: 28182.09
B34: 7 | D34: =IF(ISBLANK('10. Load Forecast'!D35),"",'10. Load Forecast'!D35) -> USL | F34: kWh | H34: =IF(ISBLANK($H$20),0,IF($H$20=$AC$4,'10. Load Forecast'!F35,IF($H$20=$AC$5,'10. Load Forecast'!L35,IF($H$20=$AC$6,'10. Load Forecast'!R35,'10. Load Forecast'!X35)))) -> 122.7694883 | J34: =IF(ISBLANK($H$20),0,IF($H$20=$AC$4,'10. Load Forecast'!H35,IF($H$20=$AC$5,'10. Load Forecast'!N35,IF($H$20=$AC$6,'10. Load Forecast'!T35,'10. Load Forecast'!Z35)))) -> 1383562.22 | L34: =IF(ISBLANK($H$20),0,IF($H$20=$AC$4,'10. Load Forecast'!J35,IF($H$20=$AC$5,'10. Load Forecast'!P35,IF($H$20=$AC$6,'10. Load Forecast'!V35,'10. Load Forecast'!AB35)))) -> 0 | O34: =IF(ISBLANK('11. Cost_Allocation'!I68),"",'11. Cost_Allocation'!I68) -> 58414.58745 | Q34: 14879.66199 | S34: 43534.92546 | U34: 0.2547251061 | W34: 0.7452748939 | AA34: 10.1 | AC34: 2 | AE34: 0.0315 | AG34: /kWh | AI34: 4 | AK34: 14879.66199 | AM34: 43582.2099 | AO34: 58461.87
B35: 8 | D35: =IF(ISBLANK('10. Load Forecast'!D36),"",'10. Load Forecast'!D36) ->  | H35: =IF(ISBLANK($H$20),0,IF($H$20=$AC$4,'10. Load Forecast'!F36,IF($H$20=$AC$5,'10. Load Forecast'!L36,IF($H$20=$AC$6,'10. Load Forecast'!R36,'10. Load Forecast'!X36)))) -> 0 | J35: =IF(ISBLANK($H$20),0,IF($H$20=$AC$4,'10. Load Forecast'!H36,IF($H$20=$AC$5,'10. Load Forecast'!N36,IF($H$20=$AC$6,'10. Load Forecast'!T36,'10. Load Forecast'!Z36)))) -> 0 | L35: =IF(ISBLANK($H$20),0,IF($H$20=$AC$4,'10. Load Forecast'!J36,IF($H$20=$AC$5,'10. Load Forecast'!P36,IF($H$20=$AC$6,'10. Load Forecast'!V36,'10. Load Forecast'!AB36)))) -> 0 | O35: =IF(ISBLANK('11. Cost_Allocation'!I69),"",'11. Cost_Allocation'!I69) ->  | AC35: 2 | AI35: 4 | AK35: 0 | AM35: 0 | AO35: 0
B36: 9 | D36: =IF(ISBLANK('10. Load Forecast'!D37),"",'10. Load Forecast'!D37) ->  | H36: =IF(ISBLANK($H$20),0,IF($H$20=$AC$4,'10. Load Forecast'!F37,IF($H$20=$AC$5,'10. Load Forecast'!L37,IF($H$20=$AC$6,'10. Load Forecast'!R37,'10. Load Forecast'!X37)))) -> 0 | J36: =IF(ISBLANK($H$20),0,IF($H$20=$AC$4,'10. Load Forecast'!H37,IF($H$20=$AC$5,'10. Load Forecast'!N37,IF($H$20=$AC$6,'10. Load Forecast'!T37,'10. Load Forecast'!Z37)))) -> 0 | L36: =IF(ISBLANK($H$20),0,IF($H$20=$AC$4,'10. Load Forecast'!J37,IF($H$20=$AC$5,'10. Load Forecast'!P37,IF($H$20=$AC$6,'10. Load Forecast'!V37,'10. Load Forecast'!AB37)))) -> 0 | O36: =IF(ISBLANK('11. Cost_Allocation'!I70),"",'11. Cost_Allocation'!I70) ->  | AC36: 2 | AI36: 4 | AK36: 0 | AM36: 0 | AO36: 0
B37: 10 | D37: =IF(ISBLANK('10. Load Forecast'!D38),"",'10. Load Forecast'!D38) ->  | H37: =IF(ISBLANK($H$20),0,IF($H$20=$AC$4,'10. Load Forecast'!F38,IF($H$20=$AC$5,'10. Load Forecast'!L38,IF($H$20=$AC$6,'10. Load Forecast'!R38,'10. Load Forecast'!X38)))) -> 0 | J37: =IF(ISBLANK($H$20),0,IF($H$20=$AC$4,'10. Load Forecast'!H38,IF($H$20=$AC$5,'10. Load Forecast'!N38,IF($H$20=$AC$6,'10. Load Forecast'!T38,'10. Load Forecast'!Z38)))) -> 0 | L37: =IF(ISBLANK($H$20),0,IF($H$20=$AC$4,'10. Load Forecast'!J38,IF($H$20=$AC$5,'10. Load Forecast'!P38,IF($H$20=$AC$6,'10. Load Forecast'!V38,'10. Load Forecast'!AB38)))) -> 0 | O37: =IF(ISBLANK('11. Cost_Allocation'!I71),"",'11. Cost_Allocation'!I71) ->  | AC37: 2 | AI37: 4 | AK37: 0 | AM37: 0 | AO37: 0
B38: 11 | D38: =IF(ISBLANK('10. Load Forecast'!D39),"",'10. Load Forecast'!D39) ->  | H38: =IF(ISBLANK($H$20),0,IF($H$20=$AC$4,'10. Load Forecast'!F39,IF($H$20=$AC$5,'10. Load Forecast'!L39,IF($H$20=$AC$6,'10. Load Forecast'!R39,'10. Load Forecast'!X39)))) -> 0 | J38: =IF(ISBLANK($H$20),0,IF($H$20=$AC$4,'10. Load Forecast'!H39,IF($H$20=$AC$5,'10. Load Forecast'!N39,IF($H$20=$AC$6,'10. Load Forecast'!T39,'10. Load Forecast'!Z39)))) -> 0 | L38: =IF(ISBLANK($H$20),0,IF($H$20=$AC$4,'10. Load Forecast'!J39,IF($H$20=$AC$5,'10. Load Forecast'!P39,IF($H$20=$AC$6,'10. Load Forecast'!V39,'10. Load Forecast'!AB39)))) -> 0 | O38: =IF(ISBLANK('11. Cost_Allocation'!I72),"",'11. Cost_Allocation'!I72) ->  | AC38: 2 | AI38: 4 | AK38: 0 | AM38: 0 | AO38: 0
B39: 12 | D39: =IF(ISBLANK('10. Load Forecast'!D40),"",'10. Load Forecast'!D40) ->  | H39: =IF(ISBLANK($H$20),0,IF($H$20=$AC$4,'10. Load Forecast'!F40,IF($H$20=$AC$5,'10. Load Forecast'!L40,IF($H$20=$AC$6,'10. Load Forecast'!R40,'10. Load Forecast'!X40)))) -> 0 | J39: =IF(ISBLANK($H$20),0,IF($H$20=$AC$4,'10. Load Forecast'!H40,IF($H$20=$AC$5,'10. Load Forecast'!N40,IF($H$20=$AC$6,'10. Load Forecast'!T40,'10. Load Forecast'!Z40)))) -> 0 | L39: =IF(ISBLANK($H$20),0,IF($H$20=$AC$4,'10. Load Forecast'!J40,IF($H$20=$AC$5,'10. Load Forecast'!P40,IF($H$20=$AC$6,'10. Load Forecast'!V40,'10. Load Forecast'!AB40)))) -> 0 | O39: =IF(ISBLANK('11. Cost_Allocation'!I73),"",'11. Cost_Allocation'!I73) ->  | AC39: 2 | AI39: 4 | AK39: 0 | AM39: 0 | AO39: 0
B40: 13 | D40: =IF(ISBLANK('10. Load Forecast'!D41),"",'10. Load Forecast'!D41) ->  | H40: =IF(ISBLANK($H$20),0,IF($H$20=$AC$4,'10. Load Forecast'!F41,IF($H$20=$AC$5,'10. Load Forecast'!L41,IF($H$20=$AC$6,'10. Load Forecast'!R41,'10. Load Forecast'!X41)))) -> 0 | J40: =IF(ISBLANK($H$20),0,IF($H$20=$AC$4,'10. Load Forecast'!H41,IF($H$20=$AC$5,'10. Load Forecast'!N41,IF($H$20=$AC$6,'10. Load Forecast'!T41,'10. Load Forecast'!Z41)))) -> 0 | L40: =IF(ISBLANK($H$20),0,IF($H$20=$AC$4,'10. Load Forecast'!J41,IF($H$20=$AC$5,'10. Load Forecast'!P41,IF($H$20=$AC$6,'10. Load Forecast'!V41,'10. Load Forecast'!AB41)))) -> 0 | O40: =IF(ISBLANK('11. Cost_Allocation'!I74),"",'11. Cost_Allocation'!I74) ->  | AC40: 2 | AI40: 4 | AK40: 0 | AM40: 0 | AO40: 0
B41: 14 | D41: =IF(ISBLANK('10. Load Forecast'!D42),"",'10. Load Forecast'!D42) ->  | H41: =IF(ISBLANK($H$20),0,IF($H$20=$AC$4,'10. Load Forecast'!F42,IF($H$20=$AC$5,'10. Load Forecast'!L42,IF($H$20=$AC$6,'10. Load Forecast'!R42,'10. Load Forecast'!X42)))) -> 0 | J41: =IF(ISBLANK($H$20),0,IF($H$20=$AC$4,'10. Load Forecast'!H42,IF($H$20=$AC$5,'10. Load Forecast'!N42,IF($H$20=$AC$6,'10. Load Forecast'!T42,'10. Load Forecast'!Z42)))) -> 0 | L41: =IF(ISBLANK($H$20),0,IF($H$20=$AC$4,'10. Load Forecast'!J42,IF($H$20=$AC$5,'10. Load Forecast'!P42,IF($H$20=$AC$6,'10. Load Forecast'!V42,'10. Load Forecast'!AB42)))) -> 0 | O41: =IF(ISBLANK('11. Cost_Allocation'!I75),"",'11. Cost_Allocation'!I75) ->  | AC41: 2 | AI41: 4 | AK41: 0 | AM41: 0 | AO41: 0
B42: 15 | D42: =IF(ISBLANK('10. Load Forecast'!D43),"",'10. Load Forecast'!D43) ->  | H42: =IF(ISBLANK($H$20),0,IF($H$20=$AC$4,'10. Load Forecast'!F43,IF($H$20=$AC$5,'10. Load Forecast'!L43,IF($H$20=$AC$6,'10. Load Forecast'!R43,'10. Load Forecast'!X43)))) -> 0 | J42: =IF(ISBLANK($H$20),0,IF($H$20=$AC$4,'10. Load Forecast'!H43,IF($H$20=$AC$5,'10. Load Forecast'!N43,IF($H$20=$AC$6,'10. Load Forecast'!T43,'10. Load Forecast'!Z43)))) -> 0 | L42: =IF(ISBLANK($H$20),0,IF($H$20=$AC$4,'10. Load Forecast'!J43,IF($H$20=$AC$5,'10. Load Forecast'!P43,IF($H$20=$AC$6,'10. Load Forecast'!V43,'10. Load Forecast'!AB43)))) -> 0 | O42: =IF(ISBLANK('11. Cost_Allocation'!I76),"",'11. Cost_Allocation'!I76) ->  | AC42: 2 | AI42: 4 | AK42: 0 | AM42: 0 | AO42: 0
B43: 16 | D43: =IF(ISBLANK('10. Load Forecast'!D44),"",'10. Load Forecast'!D44) ->  | H43: =IF(ISBLANK($H$20),0,IF($H$20=$AC$4,'10. Load Forecast'!F44,IF($H$20=$AC$5,'10. Load Forecast'!L44,IF($H$20=$AC$6,'10. Load Forecast'!R44,'10. Load Forecast'!X44)))) -> 0 | J43: =IF(ISBLANK($H$20),0,IF($H$20=$AC$4,'10. Load Forecast'!H44,IF($H$20=$AC$5,'10. Load Forecast'!N44,IF($H$20=$AC$6,'10. Load Forecast'!T44,'10. Load Forecast'!Z44)))) -> 0 | L43: =IF(ISBLANK($H$20),0,IF($H$20=$AC$4,'10. Load Forecast'!J44,IF($H$20=$AC$5,'10. Load Forecast'!P44,IF($H$20=$AC$6,'10. Load Forecast'!V44,'10. Load Forecast'!AB44)))) -> 0 | O43: =IF(ISBLANK('11. Cost_Allocation'!I77),"",'11. Cost_Allocation'!I77) ->  | AC43: 2 | AI43: 4 | AK43: 0 | AM43: 0 | AO43: 0
B44: 17 | D44: =IF(ISBLANK('10. Load Forecast'!D45),"",'10. Load Forecast'!D45) ->  | H44: =IF(ISBLANK($H$20),0,IF($H$20=$AC$4,'10. Load Forecast'!F45,IF($H$20=$AC$5,'10. Load Forecast'!L45,IF($H$20=$AC$6,'10. Load Forecast'!R45,'10. Load Forecast'!X45)))) -> 0 | J44: =IF(ISBLANK($H$20),0,IF($H$20=$AC$4,'10. Load Forecast'!H45,IF($H$20=$AC$5,'10. Load Forecast'!N45,IF($H$20=$AC$6,'10. Load Forecast'!T45,'10. Load Forecast'!Z45)))) -> 0 | L44: =IF(ISBLANK($H$20),0,IF($H$20=$AC$4,'10. Load Forecast'!J45,IF($H$20=$AC$5,'10. Load Forecast'!P45,IF($H$20=$AC$6,'10. Load Forecast'!V45,'10. Load Forecast'!AB45)))) -> 0 | O44: =IF(ISBLANK('11. Cost_Allocation'!I78),"",'11. Cost_Allocation'!I78) ->  | AC44: 2 | AI44: 4 | AK44: 0 | AM44: 0 | AO44: 0
B45: 18 | D45: =IF(ISBLANK('10. Load Forecast'!D46),"",'10. Load Forecast'!D46) ->  | H45: =IF(ISBLANK($H$20),0,IF($H$20=$AC$4,'10. Load Forecast'!F46,IF($H$20=$AC$5,'10. Load Forecast'!L46,IF($H$20=$AC$6,'10. Load Forecast'!R46,'10. Load Forecast'!X46)))) -> 0 | J45: =IF(ISBLANK($H$20),0,IF($H$20=$AC$4,'10. Load Forecast'!H46,IF($H$20=$AC$5,'10. Load Forecast'!N46,IF($H$20=$AC$6,'10. Load Forecast'!T46,'10. Load Forecast'!Z46)))) -> 0 | L45: =IF(ISBLANK($H$20),0,IF($H$20=$AC$4,'10. Load Forecast'!J46,IF($H$20=$AC$5,'10. Load Forecast'!P46,IF($H$20=$AC$6,'10. Load Forecast'!V46,'10. Load Forecast'!AB46)))) -> 0 | O45: =IF(ISBLANK('11. Cost_Allocation'!I79),"",'11. Cost_Allocation'!I79) ->  | AC45: 2 | AI45: 4 | AK45: 0 | AM45: 0 | AO45: 0 | AQ45: Distribution Revenues including TOA Credit Recovery in Rates
B46: 19 | D46: =IF(ISBLANK('10. Load Forecast'!D47),"",'10. Load Forecast'!D47) ->  | H46: =IF(ISBLANK($H$20),0,IF($H$20=$AC$4,'10. Load Forecast'!F47,IF($H$20=$AC$5,'10. Load Forecast'!L47,IF($H$20=$AC$6,'10. Load Forecast'!R47,'10. Load Forecast'!X47)))) -> 0 | J46: =IF(ISBLANK($H$20),0,IF($H$20=$AC$4,'10. Load Forecast'!H47,IF($H$20=$AC$5,'10. Load Forecast'!N47,IF($H$20=$AC$6,'10. Load Forecast'!T47,'10. Load Forecast'!Z47)))) -> 0 | L46: =IF(ISBLANK($H$20),0,IF($H$20=$AC$4,'10. Load Forecast'!J47,IF($H$20=$AC$5,'10. Load Forecast'!P47,IF($H$20=$AC$6,'10. Load Forecast'!V47,'10. Load Forecast'!AB47)))) -> 0 | O46: =IF(ISBLANK('11. Cost_Allocation'!I80),"",'11. Cost_Allocation'!I80) ->  | AC46: 2 | AI46: 4 | AK46: 0 | AM46: 0 | AO46: 0
B47: 20 | D47: =IF(ISBLANK('10. Load Forecast'!D48),"",'10. Load Forecast'!D48) ->  | H47: =IF(ISBLANK($H$20),0,IF($H$20=$AC$4,'10. Load Forecast'!F48,IF($H$20=$AC$5,'10. Load Forecast'!L48,IF($H$20=$AC$6,'10. Load Forecast'!R48,'10. Load Forecast'!X48)))) -> 0 | J47: =IF(ISBLANK($H$20),0,IF($H$20=$AC$4,'10. Load Forecast'!H48,IF($H$20=$AC$5,'10. Load Forecast'!N48,IF($H$20=$AC$6,'10. Load Forecast'!T48,'10. Load Forecast'!Z48)))) -> 0 | L47: =IF(ISBLANK($H$20),0,IF($H$20=$AC$4,'10. Load Forecast'!J48,IF($H$20=$AC$5,'10. Load Forecast'!P48,IF($H$20=$AC$6,'10. Load Forecast'!V48,'10. Load Forecast'!AB48)))) -> 0 | O47: =IF(ISBLANK('11. Cost_Allocation'!I81),"",'11. Cost_Allocation'!I81) ->  | AC47: 2 | AI47: 4 | AK47: 0 | AM47: 0 | AO47: 0
S49: Total Transformer Ownership Allowance | Y49: =SUM(Y28:Y47) -> 75810.6 | AJ49: Total Distribution Revenues | AO49: =SUM(AO28:AO47) -> 18392864.52 | AQ49: =SUM(AK28:AK47)+SUM(AM28:AM47) -> 18468675.12
AQ50: =AO49+Y49 -> 18468675.12
AE51: =IF(AO54="","",IF((ABS(AO54)<=0.5%),"Rates recover revenue requirement","Revenues recovered from rates deviate materially from revenue requirement - check data inputs and calculations")) -> Rates recover revenue requirement | AJ51: Base Revenue Requirement | AO51: =IF(H20="",0,IF(H20=AC4,'9. Rev_Reqt'!F28,IF(H20=AC5,'9. Rev_Reqt'!J28,'9. Rev_Reqt'!N28))) -> 18388097.71
B52: Notes:
AJ53: Difference | AO53: =AO49-AO51 -> 4766.807572
B54: 1 | D54: Transformer Ownership Allowance is entered as a positive amount, and only for those classes to which it applies. | AJ54: % Difference | AO54: =IF(AO51=0,"",AO53/AO51) -> 0.0002592333175
B56: 2 | D56: The Fixed/Variable split, for each customer class, drives the "rate generator" portion of this sheet of the RRWF. Only the "fixed" fraction is entered, as the sum of the "fixed" and "variable" portions must sum to 100%. For a distributor that may set the Monthly Service Charge, the "fixed" ratio is calcutated as: [MSC x (average number of customers or connections) x 12 months] / (Class Allocated Revenue Requirement).
B59: 3 | D59: The Volumetric rate is calculated as [(allocated volumetric revenue requirement for the class + transformer allowance credit for the class)/(annual estimate of the charge determinant for the test year (either kW or kVA for demand-billed customer classes, or kWh for non-demand-billed classes)]

Sheet 1. Info
AA1: Revenue Requirement Workform (RRWF) for 2025 Filers | AC1: =IF('3. Data_Input_Sheet'!M12=0, "", '3. Data_Input_Sheet'!M12) -> Interrogatory Responses
AA2: 1.1 | AC2: =IF('3. Data_Input_Sheet'!U12=0, "", '3. Data_Input_Sheet'!U12) -> Settlement Agreement
P11: Version | Q11: =$AA$2 -> 1.1
F16: Utility Name | G16: Essex Powerlines Corporation
F18: Service Territory
F20: Assigned EB Number | G20: EB-2024-0020 | AA20: Company Name
Z21: 1 | AA21: Alectra Utilities Corporation-Brampton Rate Zone
F22: Name and Title | G22: Grace Flood, Director Finance & Regulatory Affairs | Z22: 2 | AA22: Alectra Utilities Corporation-Enersource Rate Zone
Z23: 3 | AA23: Alectra Utilities Corporation-Horizon Utilities Rate Zone
F24: Phone Number | G24: 519-737-9811 X 163 | Z24: 4 | AA24: Alectra Utilities Corporation-PowerStream Rate Zone
Z25: 5 | AA25: Alectra Utilities Corporation-Guelph Rate Zone
F26: Email Address | G26: gflood@essexpowerlines,ca | Z26: 6 | AA26: Algoma Power Inc.
Z27: 7 | AA27: Atikokan Hydro Inc.
E28: Test Year | G28: 2025 | Z28: 8 | AA28: Bluewater Power Distribution Corporation
Z29: 9 | AA29: Burlington Hydro Inc.
E30: Bridge Year | G30: 2024 | Z30: 10 | AA30: Canadian Niagara Power Inc.
Z31: 11 | AA31: Centre Wellington Hydro Ltd.
E32: Last Rebasing Year | G32: 2018 | Z32: 12 | AA32: Chapleau Public Utilities Corporation
Z33: 13 | AA33: Cooperative Hydro Embrun Inc.
Z34: 14 | AA34: E.L.K. Energy Inc.
Z35: 15 | AA35: Elexicon Energy Inc.-Whitby Rate Zone
Z36: 16 | AA36: Elexicon Energy Inc.-Veridian Rate Zone
A37: The RRWF has been enhanced commencing with 2017 rate applications to provide estimated base distribution rates. The enhanced RRWF is not intended to replace a utility’s formal rate generator model which should continue to be the source of the proposed rates as well as the final ones at the conclusion of the proceeding. The load forecasting addition made to this model is intended to be demonstrative only and does not replace the information filed in the utility’s application. In an effort to minimize the incremental work required from utilities, the cost allocation and rate design additions to this model do in fact replace former appendices that were required to be filed as part of the cost of service (Chapter 2) filing requirements. | Z37: 17 | AA37: Enova Power Corp.-Kitchener-Wilmot Hydro Rate Zone
AA38: Enova Power Corp.-Waterloo North Rate Zone
A39: Commencing with 2023 rate applications, the RRWF has been enhanced with an additional column, so that two stages of processing of an application (e.g. interrogatory responses and settlement agreement) between the initial application filing and the OEB decision and draft rate order ("Per Board Decision") can be used. Functionality of the RRWF is the same as in previous versions of the RRWF. (May 2022) | Z39: 18 | AA39: Entegrus Powerlines Inc.-For Entegrus-Main Rate Zone
Z40: 19 | AA40: Entegrus Powerlines Inc.-For Former St. Thomas Energy Rate Zone
Z41: 20 | AA41: ENWIN Utilities Ltd.
Z42: 21 | AA42: EPCOR Electricity Distribution Ontario Inc.
Z43: 22 | AA43: ERTH Power Corporation - ERTH Power Main Rate Zone
Z44: 23 | AA44: ERTH POWER CORPORATION – GODERICH RATE ZONE
Z45: 24 | AA45: Espanola Regional Hydro Distribution Corporation
Z46: 25 | AA46: Essex Powerlines Corporation
Z47: 26 | AA47: Festival Hydro Inc.
Z48: 27 | AA48: Fort Frances Power Corporation
Z49: 28 | AA49: GrandBridge Energy Inc.-Brantford Power Rate Zone
Z50: 29 | AA50: GrandBridge Energy Inc.-Energy+ Rate Zone
Z51: 30 | AA51: Greater Sudbury Hydro Inc.
Z52: 31 | AA52: Grimsby Power Incorporated
Z53: 32 | AA53: Halton Hills Hydro Inc.
Z54: 33 | AA54: Hearst Power Distribution Co. Ltd.
Z55: 34 | AA55: Hydro 2000 Inc.
Z56: 35 | AA56: Hydro Hawkesbury Inc.
Z57: 36 | AA57: Hydro One Networks Inc.
Z58: 37 | AA58: Hydro One Networks Inc.-Former Orillia Power Distribution Corporation Service Area
Z59: 38 | AA59: Hydro One Networks Inc.-Former Peterborough Distribution Inc. Service Area
Z60: 39 | AA60: Hydro One Networks Inc.-Former Haldimand County Hydro Inc. Service Area
Z61: 40 | AA61: Hydro One Networks Inc.-Former Norfolk Power Distribution Inc. Service Area
Z62: 41 | AA62: Hydro One Networks Inc.-Former Woodstock Hydro Services Inc. Service Area
Z63: 42 | AA63: Hydro One Remote Communites Inc.
Z64: 43 | AA64: Hydro Ottawa Limited
Z65: 44 | AA65: InnPower Corporation
Z66: 45 | AA66: Kingston Hydro Corporation
Z67: 46 | AA67: Lakefront Utilities Inc.
Z68: 47 | AA68: Lakeland Power Distribution Ltd.
Z69: 48 | AA69: London Hydro Inc.
Z70: 49 | AA70: Milton Hydro Distribution Inc.
Z71: 50 | AA71: Newmarket-Tay Power Distribution Ltd.-For Former Midland Power Utility Rate Zone
Z72: 51 | AA72: Newmarket-Tay Power Distribution Ltd.-For Newmarket-Tay Power Main Rate Zone
Z73: 52 | AA73: Niagara Peninsula Energy Inc.
Z74: 53 | AA74: Niagara-on-the-Lake Hydro Inc.
Z75: 54 | AA75: North Bay Hydro Distribution Limited
Z76: 55 | AA76: Northern Ontario Wires Inc.
Z77: 56 | AA77: Oakville Hydro Electricity Distribution Inc.
Z78: 57 | AA78: Orangeville Hydro Limited
Z79: 58 | AA79: Oshawa PUC Networks Inc.
Z80: 59 | AA80: Ottawa River Power Corporation
Z81: 60 | AA81: PUC Distribution Inc.
Z82: 61 | AA82: Renfrew Hydro Inc.
Z83: 62 | AA83: Rideau St. Lawrence Distribution Inc.
Z84: 63 | AA84: Sioux Lookout Hydro Inc.
Z85: 64 | AA85: Synergy North Corporation-Kenora Rate Zone
Z86: 65 | AA86: Synergy North Corporation-Thunder Bay Rate Zone
Z87: 66 | AA87: Tillsonburg Hydro Inc.
Z88: 67 | AA88: Toronto Hydro-Electric System Limited
Z89: 68 | AA89: Wasaga Distribution Inc.
Z90: 69 | AA90: Welland Hydro-Electric System Corp.
Z91: 70 | AA91: Wellington North Power Inc.
Z92: 71 | AA92: Westario Power Inc.

Sheet 2. Table of Contents
A10: Table of Contents
D12: 1. Info | I12: 8. Rev_Def_Suff
D14: 2. Table of Contents | I14: 9. Rev_Reqt
D16: 3. Data_Input_Sheet | I16: 10. Load Forecast
D18: 4. Rate_Base | I18: 11. Cost Allocation
D20: 5. Utility Income | I20: 12. Residential Rate Design - hidden. Contact OEB staff if needed.
D22: 6. Taxes_PILs | I22: 13. Rate Design and Revenue Reconciliation
D24: 7. Cost_of_Capital | I24: 14. Tracking Sheet
A26: Notes:
A27: (1) | B27: Pale green cells represent inputs
A28: (2) | B28: Pale green boxes at the bottom of each page are for additional notes
A29: (3) | B29: Pale blue cells represent drop-down lists
A30: (4) | B30: Please note that this model uses MACROS. Before starting, please ensure that macros have been enabled.
A31: (5) | B31: Completed versions of the Revenue Requirement Work Form are required to be filed in working Microsoft Excel format.

Sheet Hidden_Data Input (hidden)
A1: Utility Name | B1: EB Number | C1: Test Year | D1: Bridge Year | E1: Last Rebasing Year | F1: Data Elements | G1: Heading | H1: Intital Application | I1: Per Board Decision
A2: ='1. Info'!$G$16 -> Essex Powerlines Corporation | B2: ='1. Info'!$G$20 -> EB-2024-0020 | C2: ='1. Info'!$G$28 -> 2025 | D2: ='1. Info'!$G$30 -> 2024 | E2: ='1. Info'!$G$32 -> 2018 | F2: Gross Fixed Assets (average) | G2: Rate Base | H2: ='3. Data_Input_Sheet'!E16 -> 130756206 | I2: ='3. Data_Input_Sheet'!U16 -> 130756206
A3: ='1. Info'!$G$16 -> Essex Powerlines Corporation | B3: ='1. Info'!$G$20 -> EB-2024-0020 | C3: ='1. Info'!$G$28 -> 2025 | D3: ='1. Info'!$G$30 -> 2024 | E3: ='1. Info'!$G$32 -> 2018 | F3: Accumulated Depreciation (average) | G3: Rate Base | H3: ='3. Data_Input_Sheet'!E17 -> -53584409 | I3: ='3. Data_Input_Sheet'!U17 -> -53584409
A4: ='1. Info'!$G$16 -> Essex Powerlines Corporation | B4: ='1. Info'!$G$20 -> EB-2024-0020 | C4: ='1. Info'!$G$28 -> 2025 | D4: ='1. Info'!$G$30 -> 2024 | E4: ='1. Info'!$G$32 -> 2018 | F4: Controllable Expenses | G4: Allowance for Working Capital | H4: ='3. Data_Input_Sheet'!E19 -> 10356735 | I4: ='3. Data_Input_Sheet'!U19 -> 10356735
A5: ='1. Info'!$G$16 -> Essex Powerlines Corporation | B5: ='1. Info'!$G$20 -> EB-2024-0020 | C5: ='1. Info'!$G$28 -> 2025 | D5: ='1. Info'!$G$30 -> 2024 | E5: ='1. Info'!$G$32 -> 2018 | F5: Cost of Power | G5: Allowance for Working Capital | H5: ='3. Data_Input_Sheet'!E20 -> 73507386 | I5: ='3. Data_Input_Sheet'!U20 -> 73507386
A6: ='1. Info'!$G$16 -> Essex Powerlines Corporation | B6: ='1. Info'!$G$20 -> EB-2024-0020 | C6: ='1. Info'!$G$28 -> 2025 | D6: ='1. Info'!$G$30 -> 2024 | E6: ='1. Info'!$G$32 -> 2018 | F6: Working Capital Rate (%) | G6: Allowance for Working Capital | H6: ='3. Data_Input_Sheet'!E21 -> 0.075 | I6: ='3. Data_Input_Sheet'!U21 -> 0
A7: ='1. Info'!$G$16 -> Essex Powerlines Corporation | B7: ='1. Info'!$G$20 -> EB-2024-0020 | C7: ='1. Info'!$G$28 -> 2025 | D7: ='1. Info'!$G$30 -> 2024 | E7: ='1. Info'!$G$32 -> 2018 | F7: Distribution Revenue at Current Rates | G7: Utility Income | H7: ='3. Data_Input_Sheet'!E25 -> 16063795.9 | I7: ='3. Data_Input_Sheet'!U25 -> 0
A8: ='1. Info'!$G$16 -> Essex Powerlines Corporation | B8: ='1. Info'!$G$20 -> EB-2024-0020 | C8: ='1. Info'!$G$28 -> 2025 | D8: ='1. Info'!$G$30 -> 2024 | E8: ='1. Info'!$G$32 -> 2018 | F8: Distribution Revenue at Proposed Rates | G8: Utility Income | H8: ='3. Data_Input_Sheet'!E26 -> 18388097.71 | I8: ='3. Data_Input_Sheet'!U26 -> 0
A9: ='1. Info'!$G$16 -> Essex Powerlines Corporation | B9: ='1. Info'!$G$20 -> EB-2024-0020 | C9: ='1. Info'!$G$28 -> 2025 | D9: ='1. Info'!$G$30 -> 2024 | E9: ='1. Info'!$G$32 -> 2018 | F9: Specific Service Charges | G9: Other Revenue | H9: ='3. Data_Input_Sheet'!E28 -> 152000 | I9: ='3. Data_Input_Sheet'!U28 -> 0
A10: ='1. Info'!$G$16 -> Essex Powerlines Corporation | B10: ='1. Info'!$G$20 -> EB-2024-0020 | C10: ='1. Info'!$G$28 -> 2025 | D10: ='1. Info'!$G$30 -> 2024 | E10: ='1. Info'!$G$32 -> 2018 | F10: Late Payment Charges | G10: Other Revenue | H10: ='3. Data_Input_Sheet'!E29 -> 210000 | I10: ='3. Data_Input_Sheet'!U29 -> 0
A11: ='1. Info'!$G$16 -> Essex Powerlines Corporation | B11: ='1. Info'!$G$20 -> EB-2024-0020 | C11: ='1. Info'!$G$28 -> 2025 | D11: ='1. Info'!$G$30 -> 2024 | E11: ='1. Info'!$G$32 -> 2018 | F11: Other Distribution Revenue | G11: Other Revenue | H11: ='3. Data_Input_Sheet'!E30 -> 520033 | I11: ='3. Data_Input_Sheet'!U30 -> 0
A12: ='1. Info'!$G$16 -> Essex Powerlines Corporation | B12: ='1. Info'!$G$16 -> Essex Powerlines Corporation | C12: ='1. Info'!$G$16 -> Essex Powerlines Corporation | D12: ='1. Info'!$G$16 -> Essex Powerlines Corporation | E12: ='1. Info'!$G$16 -> Essex Powerlines Corporation | F12: Other Income and Deductions | G12: Other Revenue | H12: ='3. Data_Input_Sheet'!E31 -> 224211 | I12: ='3. Data_Input_Sheet'!U31 -> 0
A13: ='1. Info'!$G$16 -> Essex Powerlines Corporation | B13: ='1. Info'!$G$16 -> Essex Powerlines Corporation | C13: ='1. Info'!$G$16 -> Essex Powerlines Corporation | D13: ='1. Info'!$G$16 -> Essex Powerlines Corporation | E13: ='1. Info'!$G$16 -> Essex Powerlines Corporation | F13: Total Revenue Offsets | G13: Other Revenue | H13: ='3. Data_Input_Sheet'!E33 -> 1106244 | I13: ='3. Data_Input_Sheet'!U33 -> 0
A14: ='1. Info'!$G$16 -> Essex Powerlines Corporation | B14: ='1. Info'!$G$20 -> EB-2024-0020 | C14: ='1. Info'!$G$28 -> 2025 | D14: ='1. Info'!$G$30 -> 2024 | E14: ='1. Info'!$G$32 -> 2018 | F14: OM+A Expenses | G14: Operating Expenses | H14: ='3. Data_Input_Sheet'!E36 -> 10312735 | I14: ='3. Data_Input_Sheet'!U36 -> 10312735
A15: ='1. Info'!$G$16 -> Essex Powerlines Corporation | B15: ='1. Info'!$G$20 -> EB-2024-0020 | C15: ='1. Info'!$G$28 -> 2025 | D15: ='1. Info'!$G$30 -> 2024 | E15: ='1. Info'!$G$32 -> 2018 | F15: Depreciation/Amortization | G15: Operating Expenses | H15: ='3. Data_Input_Sheet'!E37 -> 4050033.3 | I15: ='3. Data_Input_Sheet'!U37 -> 4050033.3
A16: ='1. Info'!$G$16 -> Essex Powerlines Corporation | B16: ='1. Info'!$G$20 -> EB-2024-0020 | C16: ='1. Info'!$G$28 -> 2025 | D16: ='1. Info'!$G$30 -> 2024 | E16: ='1. Info'!$G$32 -> 2018 | F16: Property taxes | G16: Operating Expenses | H16: ='3. Data_Input_Sheet'!E38 -> 44000 | I16: ='3. Data_Input_Sheet'!U38 -> 44000
A17: ='1. Info'!$G$16 -> Essex Powerlines Corporation | B17: ='1. Info'!$G$20 -> EB-2024-0020 | C17: ='1. Info'!$G$28 -> 2025 | D17: ='1. Info'!$G$30 -> 2024 | E17: ='1. Info'!$G$32 -> 2018 | F17: Other expenses | G17: Operating Expenses | H17: ='3. Data_Input_Sheet'!E40 -> 0 | I17: ='3. Data_Input_Sheet'!U40 -> 
A18: ='1. Info'!$G$16 -> Essex Powerlines Corporation | B18: ='1. Info'!$G$20 -> EB-2024-0020 | C18: ='1. Info'!$G$28 -> 2025 | D18: ='1. Info'!$G$30 -> 2024 | E18: ='1. Info'!$G$32 -> 2018 | F18: Adjustments required to arrive at taxable income | G18: Taxable Income | H18: ='3. Data_Input_Sheet'!E44 -> -2520502 | I18: ='3. Data_Input_Sheet'!U44 -> 0
A19: ='1. Info'!$G$16 -> Essex Powerlines Corporation | B19: ='1. Info'!$G$20 -> EB-2024-0020 | C19: ='1. Info'!$G$28 -> 2025 | D19: ='1. Info'!$G$30 -> 2024 | E19: ='1. Info'!$G$32 -> 2018 | F19: Income taxes (not grossed up) | G19: Utility Income Taxes | H19: ='3. Data_Input_Sheet'!E46 -> 144837 | I19: ='3. Data_Input_Sheet'!U46 -> 0
A20: ='1. Info'!$G$16 -> Essex Powerlines Corporation | B20: ='1. Info'!$G$20 -> EB-2024-0020 | C20: ='1. Info'!$G$28 -> 2025 | D20: ='1. Info'!$G$30 -> 2024 | E20: ='1. Info'!$G$32 -> 2018 | F20: Federal tax (%) | G20: Income taxes (grossed up) | H20: ='3. Data_Input_Sheet'!E49 -> 0.15 | I20: ='3. Data_Input_Sheet'!U49 -> 0
A21: ='1. Info'!$G$16 -> Essex Powerlines Corporation | B21: ='1. Info'!$G$20 -> EB-2024-0020 | C21: ='1. Info'!$G$28 -> 2025 | D21: ='1. Info'!$G$30 -> 2024 | E21: ='1. Info'!$G$32 -> 2018 | F21: Provincial tax (%) | G21: Income taxes (grossed up) | H21: ='3. Data_Input_Sheet'!E50 -> 0.115 | I21: ='3. Data_Input_Sheet'!U50 -> 0
A22: ='1. Info'!$G$16 -> Essex Powerlines Corporation | B22: ='1. Info'!$G$20 -> EB-2024-0020 | C22: ='1. Info'!$G$28 -> 2025 | D22: ='1. Info'!$G$30 -> 2024 | E22: ='1. Info'!$G$32 -> 2018 | F22: Income Tax Credits | G22: Income taxes (grossed up) | H22: ='3. Data_Input_Sheet'!E51 -> 0 | I22: ='3. Data_Input_Sheet'!U51 -> 0
A23: ='1. Info'!$G$16 -> Essex Powerlines Corporation | B23: ='1. Info'!$G$20 -> EB-2024-0020 | C23: ='1. Info'!$G$28 -> 2025 | D23: ='1. Info'!$G$30 -> 2024 | E23: ='1. Info'!$G$32 -> 2018 | F23: Long-term debt Capitalization Ratio (%) | G23: Capitalization | H23: ='3. Data_Input_Sheet'!E55 -> 0.56 | I23: ='3. Data_Input_Sheet'!U55 -> 0
A24: ='1. Info'!$G$16 -> Essex Powerlines Corporation | B24: ='1. Info'!$G$20 -> EB-2024-0020 | C24: ='1. Info'!$G$28 -> 2025 | D24: ='1. Info'!$G$30 -> 2024 | E24: ='1. Info'!$G$32 -> 2018 | F24: Short-term debt Capitalization Ratio (%) | G24: Capitalization | H24: ='3. Data_Input_Sheet'!E56 -> 0.04 | I24: ='3. Data_Input_Sheet'!U56 -> 0
A25: ='1. Info'!$G$16 -> Essex Powerlines Corporation | B25: ='1. Info'!$G$20 -> EB-2024-0020 | C25: ='1. Info'!$G$28 -> 2025 | D25: ='1. Info'!$G$30 -> 2024 | E25: ='1. Info'!$G$32 -> 2018 | F25: Common Equity Capitalization Ratio (%) | G25: Capitalization | H25: ='3. Data_Input_Sheet'!E57 -> 0.4 | I25: ='3. Data_Input_Sheet'!U57 -> 0
A26: ='1. Info'!$G$16 -> Essex Powerlines Corporation | B26: ='1. Info'!$G$20 -> EB-2024-0020 | C26: ='1. Info'!$G$28 -> 2025 | D26: ='1. Info'!$G$30 -> 2024 | E26: ='1. Info'!$G$32 -> 2018 | F26: Prefered Shares Capitalization Ratio (%) | G26: Capitalization | H26: ='3. Data_Input_Sheet'!E58 -> 0 | I26: ='3. Data_Input_Sheet'!U58 -> 0
A27: ='1. Info'!$G$16 -> Essex Powerlines Corporation | B27: ='1. Info'!$G$20 -> EB-2024-0020 | C27: ='1. Info'!$G$28 -> 2025 | D27: ='1. Info'!$G$30 -> 2024 | E27: ='1. Info'!$G$32 -> 2018 | F27: Long-term debt Cost Rate (%) | G27: Cost of Capital | H27: ='3. Data_Input_Sheet'!E62 -> 0.0344 | I27: ='3. Data_Input_Sheet'!U62 -> 0
A28: ='1. Info'!$G$16 -> Essex Powerlines Corporation | B28: ='1. Info'!$G$20 -> EB-2024-0020 | C28: ='1. Info'!$G$28 -> 2025 | D28: ='1. Info'!$G$30 -> 2024 | E28: ='1. Info'!$G$32 -> 2018 | F28: Short-term debt Cost Rate (%) | G28: Cost of Capital | H28: ='3. Data_Input_Sheet'!E63 -> 0.0623 | I28: ='3. Data_Input_Sheet'!U63 -> 0
A29: ='1. Info'!$G$16 -> Essex Powerlines Corporation | B29: ='1. Info'!$G$20 -> EB-2024-0020 | C29: ='1. Info'!$G$28 -> 2025 | D29: ='1. Info'!$G$30 -> 2024 | E29: ='1. Info'!$G$32 -> 2018 | F29: Common Equity Cost Rate (%) | G29: Cost of Capital | H29: ='3. Data_Input_Sheet'!E64 -> 0.0921 | I29: ='3. Data_Input_Sheet'!U64 -> 0
A30: ='1. Info'!$G$16 -> Essex Powerlines Corporation | B30: ='1. Info'!$G$20 -> EB-2024-0020 | C30: ='1. Info'!$G$28 -> 2025 | D30: ='1. Info'!$G$30 -> 2024 | E30: ='1. Info'!$G$32 -> 2018 | F30: Prefered Shares Cost Rate (%) | G30: Cost of Capital | H30: ='3. Data_Input_Sheet'!E65 -> 0 | I30: ='3. Data_Input_Sheet'!U65 -> 0

Sheet Hidden Data_Rev Reqt (hidden)
A1: Utility Name | B1: EB Number | C1: Test Year | D1: Bridge Year | E1: Last Rebasing Year | F1: Data Elements | G1: Intital Application | H1: Per Board Decision
A2: ='1. Info'!$G$16 -> Essex Powerlines Corporation | B2: ='1. Info'!$G$20 -> EB-2024-0020 | C2: ='1. Info'!$G$28 -> 2025 | D2: ='1. Info'!$G$30 -> 2024 | E2: ='1. Info'!$G$32 -> 2018 | F2: Service Revenue Requirement (before Revenues) | G2: ='9. Rev_Reqt'!F25 -> 19494341.71 | H2: ='9. Rev_Reqt'!N25 -> 14603825.44
A3: ='1. Info'!$G$16 -> Essex Powerlines Corporation | B3: ='1. Info'!$G$20 -> EB-2024-0020 | C3: ='1. Info'!$G$28 -> 2025 | D3: ='1. Info'!$G$30 -> 2024 | E3: ='1. Info'!$G$32 -> 2018 | F3: Base Revenue Requirement | G3: ='9. Rev_Reqt'!F28 -> 18388097.71 | H3: ='9. Rev_Reqt'!N28 -> 14603825.44
A4: ='1. Info'!$G$16 -> Essex Powerlines Corporation | B4: ='1. Info'!$G$20 -> EB-2024-0020 | C4: ='1. Info'!$G$28 -> 2025 | D4: ='1. Info'!$G$30 -> 2024 | E4: ='1. Info'!$G$32 -> 2018 | F4: Revenue Deficiency/(Sufficiency) Associated with Base Revenue Requirement | G4: ='9. Rev_Reqt'!F46 -> 2324301.811 | H4: ='9. Rev_Reqt'!N46 -> 0

Sheet 14. Tracking_Sheet
B14: Tracking Form
B15: The first row shown, labelled "Original Application", summarizes key statistics based on the data inputs into the RRWF. After the original application filing, the applicant provides key changes in capital and operating expenses, load forecasts, cost of capital, etc., as revised through the processing of the application. This could be due to revisions or responses to interrogatories. The last row shown is the most current estimate of the cost of service data reflecting the original application and any updates provided by the applicant distributor (for updated evidence, responses to interrogatories, undertakings, etc.) Please ensure a Reference (Column B) and/or Item Description (Column C) is entered. Please note that unused rows will automatically be hidden and the PRINT AREA set when the PRINT BUTTON on Sheet 1 is activated. (1) Short reference to evidence material (interrogatory response, undertaking, exhibit number, Board Decision, Code, Guideline, Report of the Board, etc.) (2) Short description of change, issue, etc. 60 Tracking Rows have been provided below. If you require more, please contact Industry Relations @ IndustryRelations@ontarioenergyboard.ca.
B16: Summary of Proposed Changes
D18: Cost of Capital | F18: Rate Base and Capital Expenditures | I18: Operating Expenses | L18: Revenue Requirement
B19: Reference (1) | C19: Item / Description (2) | D19: Regulated Return on Capital | E19: Regulated Rate of Return | F19: Rate Base | G19: Working Capital | H19: Working Capital Allowance ($) | I19: Amortization / Depreciation | J19: Taxes/PILs | K19: OM&A | L19: Service Revenue Requirement | M19: Other Revenues | N19: Base Revenue Requirement | O19: Grossed up Revenue Deficiency / Sufficiency
C21: Original Application | D21: ='7. Cost_of_Capital'!P26 -> 4890516.27 | E21: ='7. Cost_of_Capital'!L26 -> 0.058596 | F21: ='4. Rate_Base'!G18 -> 83461606.08 | G21: ='4. Rate_Base'!G26 -> 83864121 | H21: ='4. Rate_Base'!G30 -> 6289809.075 | I21: ='9. Rev_Reqt'!F16 -> 4050033.3 | J21: ='9. Rev_Reqt'!F19 -> 197057.1429 | K21: ='9. Rev_Reqt'!F15 -> 10312735 | L21: ='9. Rev_Reqt'!F25 -> 19494341.71 | M21: ='9. Rev_Reqt'!F32 -> 1106244 | N21: ='9. Rev_Reqt'!F28 -> 18388097.71 | O21: ='8. Rev_Def_Suff'!F52 -> 2894210.432
A23: 1 | Q23: =IF(AND(ISBLANK(B23), ISBLANK(C23)), "X", "") -> X
C24: Change | D24: =IF(D23="","",D23-D21) ->  | E24: =IF(E23="","",E23-E21) -> 
A26: 2 | Q26: =IF(AND(ISBLANK(B26), ISBLANK(C26)), "X", "") -> X
C27: Change | D27: =IF(D26="","",D26-D23) -> 
A29: 3 | Q29: =IF(AND(ISBLANK(B29), ISBLANK(C29)), "X", "") -> X
C30: Change | D30: =IF(D29="","",D29-D26) -> 
A32: 4 | Q32: =IF(AND(ISBLANK(B32), ISBLANK(C32)), "X", "") -> X
C33: Change | D33: =IF(D32="","",D32-D29) -> 
A35: 5 | Q35: =IF(AND(ISBLANK(B35), ISBLANK(C35)), "X", "") -> X
C36: Change | D36: =IF(D35="","",D35-D32) -> 
A38: 6 | Q38: =IF(AND(ISBLANK(B38), ISBLANK(C38)), "X", "") -> X
C39: Change | D39: =IF(D38="","",D38-D35) -> 
A41: 7 | Q41: =IF(AND(ISBLANK(B41), ISBLANK(C41)), "X", "") -> X
C42: Change | D42: =IF(D41="","",D41-D38) -> 
A44: 8 | Q44: =IF(AND(ISBLANK(B44), ISBLANK(C44)), "X", "") -> X
C45: Change | D45: =IF(D44="","",D44-D41) -> 
A47: 9 | Q47: =IF(AND(ISBLANK(B47), ISBLANK(C47)), "X", "") -> X
C48: Change | D48: =IF(D47="","",D47-D44) -> 
A50: 10 | Q50: =IF(AND(ISBLANK(B50), ISBLANK(C50)), "X", "") -> X
C51: Change | D51: =IF(D50="","",D50-D47) -> 
A53: 11 | Q53: =IF(AND(ISBLANK(B53), ISBLANK(C53)), "X", "") -> X
C54: Change | D54: =IF(D53="","",D53-D50) -> 
A56: 12 | Q56: =IF(AND(ISBLANK(B56), ISBLANK(C56)), "X", "") -> X
C57: Change | D57: =IF(D56="","",D56-D53) -> 
A59: 13 | Q59: =IF(AND(ISBLANK(B59), ISBLANK(C59)), "X", "") -> X
C60: Change | D60: =IF(D59="","",D59-D56) -> 
A62: 14 | Q62: =IF(AND(ISBLANK(B62), ISBLANK(C62)), "X", "") -> X
C63: Change | D63: =IF(D62="","",D62-D59) -> 
A65: 15 | Q65: =IF(AND(ISBLANK(B65), ISBLANK(C65)), "X", "") -> X
C66: Change | D66: =IF(D65="","",D65-D62) -> 
A68: 16 | Q68: =IF(AND(ISBLANK(B68), ISBLANK(C68)), "X", "") -> X
C69: Change | D69: =IF(D68="","",D68-D65) -> 
A71: 17 | Q71: =IF(AND(ISBLANK(B71), ISBLANK(C71)), "X", "") -> X
C72: Change | D72: =IF(D71="","",D71-D68) -> 
A74: 18 | Q74: =IF(AND(ISBLANK(B74), ISBLANK(C74)), "X", "") -> X
C75: Change | D75: =IF(D74="","",D74-D71) -> 
R76: Page Break 1
A77: 19 | Q77: =IF(AND(ISBLANK(B77), ISBLANK(C77)), "X", "") -> X
C78: Change | D78: =IF(D77="","",D77-D74) -> 
A80: 20 | Q80: =IF(AND(ISBLANK(B80), ISBLANK(C80)), "X", "") -> X
C81: Change | D81: =IF(D80="","",D80-D77) -> 
A83: 21 | Q83: =IF(AND(ISBLANK(B83), ISBLANK(C83)), "X", "") -> X
C84: Change | D84: =IF(D83="","",D83-D80) -> 
A86: 22 | Q86: =IF(AND(ISBLANK(B86), ISBLANK(C86)), "X", "") -> X
C87: Change | D87: =IF(D86="","",D86-D83) -> 
A89: 23 | Q89: =IF(AND(ISBLANK(B89), ISBLANK(C89)), "X", "") -> X
C90: Change | D90: =IF(D89="","",D89-D86) -> 
A92: 24 | Q92: =IF(AND(ISBLANK(B92), ISBLANK(C92)), "X", "") -> X
C93: Change | D93: =IF(D92="","",D92-D89) -> 
A95: 25 | Q95: =IF(AND(ISBLANK(B95), ISBLANK(C95)), "X", "") -> X
C96: Change | D96: =IF(D95="","",D95-D92) -> 
A98: 26 | Q98: =IF(AND(ISBLANK(B98), ISBLANK(C98)), "X", "") -> X
C99: Change | D99: =IF(D98="","",D98-D95) -> 
A101: 27 | Q101: =IF(AND(ISBLANK(B101), ISBLANK(C101)), "X", "") -> X
C102: Change | D102: =IF(D101="","",D101-D98) -> 
A104: 28 | Q104: =IF(AND(ISBLANK(B104), ISBLANK(C104)), "X", "") -> X
C105: Change | D105: =IF(D104="","",D104-D101) -> 
A107: 29 | Q107: =IF(AND(ISBLANK(B107), ISBLANK(C107)), "X", "") -> X
C108: Change | D108: =IF(D107="","",D107-D104) -> 
A110: 30 | Q110: =IF(AND(ISBLANK(B110), ISBLANK(C110)), "X", "") -> X
C111: Change | D111: =IF(D110="","",D110-D107) -> 
A113: 31 | Q113: =IF(AND(ISBLANK(B113), ISBLANK(C113)), "X", "") -> X
C114: Change | D114: =IF(D113="","",D113-D110) -> 
A116: 32 | Q116: =IF(AND(ISBLANK(B116), ISBLANK(C116)), "X", "") -> X
C117: Change | D117: =IF(D116="","",D116-D113) -> 
A119: 33 | Q119: =IF(AND(ISBLANK(B119), ISBLANK(C119)), "X", "") -> X
C120: Change | D120: =IF(D119="","",D119-D116) -> 
A122: 34 | Q122: =IF(AND(ISBLANK(B122), ISBLANK(C122)), "X", "") -> X
C123: Change | D123: =IF(D122="","",D122-D119) -> 
A125: 35 | Q125: =IF(AND(ISBLANK(B125), ISBLANK(C125)), "X", "") -> X
C126: Change | D126: =IF(D125="","",D125-D122) -> 
A128: 36 | Q128: =IF(AND(ISBLANK(B128), ISBLANK(C128)), "X", "") -> X
C129: Change | D129: =IF(D128="","",D128-D125) -> 
R130: Page Break 2
A131: 37 | Q131: =IF(AND(ISBLANK(B131), ISBLANK(C131)), "X", "") -> X
C132: Change | D132: =IF(D131="","",D131-D128) -> 
A134: 38 | Q134: =IF(AND(ISBLANK(B134), ISBLANK(C134)), "X", "") -> X
C135: Change | D135: =IF(D134="","",D134-D131) -> 
A137: 39 | Q137: =IF(AND(ISBLANK(B137), ISBLANK(C137)), "X", "") -> X
C138: Change | D138: =IF(D137="","",D137-D134) -> 
A140: 40 | Q140: =IF(AND(ISBLANK(B140), ISBLANK(C140)), "X", "") -> X
C141: Change | D141: =IF(D140="","",D140-D137) -> 
A143: 41 | Q143: =IF(AND(ISBLANK(B143), ISBLANK(C143)), "X", "") -> X
C144: Change | D144: =IF(D143="","",D143-D140) -> 
A146: 42 | Q146: =IF(AND(ISBLANK(B146), ISBLANK(C146)), "X", "") -> X
C147: Change | D147: =IF(D146="","",D146-D143) -> 
A149: 43 | Q149: =IF(AND(ISBLANK(B149), ISBLANK(C149)), "X", "") -> X
C150: Change | D150: =IF(D149="","",D149-D146) -> 
A152: 44 | Q152: =IF(AND(ISBLANK(B152), ISBLANK(C152)), "X", "") -> X
C153: Change | D153: =IF(D152="","",D152-D149) -> 
A155: 45 | Q155: =IF(AND(ISBLANK(B155), ISBLANK(C155)), "X", "") -> X
C156: Change | D156: =IF(D155="","",D155-D152) -> 
A158: 46 | Q158: =IF(AND(ISBLANK(B158), ISBLANK(C158)), "X", "") -> X
C159: Change | D159: =IF(D158="","",D158-D155) -> 
A161: 47 | Q161: =IF(AND(ISBLANK(B161), ISBLANK(C161)), "X", "") -> X
C162: Change | D162: =IF(D161="","",D161-D158) -> 
A164: 48 | Q164: =IF(AND(ISBLANK(B164), ISBLANK(C164)), "X", "") -> X
C165: Change | D165: =IF(D164="","",D164-D161) -> 
A167: 49 | Q167: =IF(AND(ISBLANK(B167), ISBLANK(C167)), "X", "") -> X
C168: Change | D168: =IF(D167="","",D167-D164) -> 
A170: 50 | Q170: =IF(AND(ISBLANK(B170), ISBLANK(C170)), "X", "") -> X
C171: Change | D171: =IF(D170="","",D170-D167) -> 
A173: 51 | Q173: =IF(AND(ISBLANK(B173), ISBLANK(C173)), "X", "") -> X
C174: Change | D174: =IF(D173="","",D173-D170) -> 
A176: 52 | Q176: =IF(AND(ISBLANK(B176), ISBLANK(C176)), "X", "") -> X
C177: Change | D177: =IF(D176="","",D176-D173) -> 
A179: 53 | Q179: =IF(AND(ISBLANK(B179), ISBLANK(C179)), "X", "") -> X
C180: Change | D180: =IF(D179="","",D179-D176) -> 
R181: Page Break 3
A182: 54 | Q182: =IF(AND(ISBLANK(B182), ISBLANK(C182)), "X", "") -> X
C183: Change | D183: =IF(D182="","",D182-D179) -> 
A185: 55 | Q185: =IF(AND(ISBLANK(B185), ISBLANK(C185)), "X", "") -> X
C186: Change | D186: =IF(D185="","",D185-D182) -> 
A188: 56 | Q188: =IF(AND(ISBLANK(B188), ISBLANK(C188)), "X", "") -> X
C189: Change | D189: =IF(D188="","",D188-D185) -> 
A191: 57 | Q191: =IF(AND(ISBLANK(B191), ISBLANK(C191)), "X", "") -> X
C192: Change | D192: =IF(D191="","",D191-D188) -> 
A194: 58 | Q194: =IF(AND(ISBLANK(B194), ISBLANK(C194)), "X", "") -> X
C195: Change | D195: =IF(D194="","",D194-D191) -> 
A197: 59 | Q197: =IF(AND(ISBLANK(B197), ISBLANK(C197)), "X", "") -> X
C198: Change | D198: =IF(D197="","",D197-D194) -> 
A200: 60 | Q200: =IF(AND(ISBLANK(B200), ISBLANK(C200)), "X", "") -> X
C201: Change | D201: =IF(D200="","",D200-D197) -> 
R203: Page Break 4

Sheet Sheet4 (hidden)
